Workbook

Sheet 1. Utility_Info
AB1: 31
AB2: =VLOOKUP(AB1, $AA$20:$AB$87, 2,0) -> Haldimand County Hydro Inc. | AC2: =VLOOKUP($AB1, $AA$20:$AF$86, MATCH(AC$20, $AA$20:$AF$20,0),FALSE) ->  | AD2: =VLOOKUP($AB1, $AA$20:$AF$86, MATCH(AD$20, $AA$20:$AF$20,0),FALSE) ->  | AE2: =VLOOKUP($AB1, $AA$20:$AF$86, MATCH(AE$20, $AA$20:$AF$20,0),FALSE) -> 
A13: 2011-12-12 | C13: Notes pages removed - kcr
C17: Name: | D17: Jacqueline A. Scott
C19: Title: | D19: Finance Manager
AB20: Company Name
C21: Phone Number: | D21: 905-765-5211 ext. 2237 | AA21: 1 | AB21: Algoma Power Inc.
AA22: 2 | AB22: Atikokan Hydro Inc.
C23: Email Address: | D23: jscott@hchydro.ca | AA23: 3 | AB23: Attawapiskat Power Corp.
AA24: 4 | AB24: Bluewater Power Distribution Corporation
C25: We are applying for rates effective: | D25: 2012-11-01 | AA25: 5 | AB25: Brant County Power Inc.
AA26: 6 | AB26: Brantford Power Inc.
C27: Last COS Re-based Year | D27: 2010 | AA27: 7 | AB27: Burlington Hydro Inc.
AA28: 8 | AB28: Cambridge and North Dumfries Hydro Inc.
AA29: 9 | AB29: Canadian Niagara Power Inc. - Eastern Ontario Power
AA30: 10 | AB30: Canadian Niagara Power Inc. - Fort Erie
AA31: 11 | AB31: Canadian Niagara Power Inc. - Port Colborne Hydro Inc.
AA32: 12 | AB32: Centre Wellington Hydro Ltd.
AA33: 13 | AB33: Chapleau Public Utilities Corporation
AA34: 14 | AB34: Chatham-Kent Hydro Inc.
AA35: 15 | AB35: Clinton Power Corporation
AA36: 16 | AB36: COLLUS Power Corporation
AA37: 17 | AB37: Cooperative Hydro Embrun Inc.
AA38: 18 | AB38: E.L.K. Energy Inc.
AA39: 19 | AB39: Enersource Hydro Mississauga Inc.
AA40: 20 | AB40: ENWIN Utilities Ltd.
AA41: 21 | AB41: Erie Thames Powerlines Corporation
AA42: 22 | AB42: Espanola Regional Hydro Distribution Corporation
AA43: 23 | AB43: Essex Powerlines Corporation
AA44: 24 | AB44: Festival Hydro Inc.
AA45: 25 | AB45: Festival Hydro Inc. - Hensall
AA46: 26 | AB46: Fort Albany Power Corporation
AA47: 27 | AB47: Fort Frances Power Corporation
AA48: 28 | AB48: Greater Sudbury Hydro Inc.
AA49: 29 | AB49: Grimsby Power Inc.
AA50: 30 | AB50: Guelph Hydro Electric Systems Inc.
AA51: 31 | AB51: Haldimand County Hydro Inc.
AA52: 32 | AB52: Halton Hills Hydro Inc.
AA53: 33 | AB53: Hearst Power Distribution Company Limited
AA54: 34 | AB54: Horizon Utilities Corporation
AA55: 35 | AB55: Hydro 2000 Inc.
AA56: 36 | AB56: Hydro Hawkesbury Inc.
AA57: 37 | AB57: Hydro One Brampton Networks Inc.
AA58: 38 | AB58: Hydro One Networks Inc.
AA59: 39 | AB59: Hydro Ottawa Limited
AA60: 40 | AB60: Innisfil Hydro Distribution Systems Limited
AA61: 41 | AB61: Kashechewan Power Corporation
AA62: 42 | AB62: Kenora Hydro Electric Corporation Ltd.
AA63: 43 | AB63: Kingston Hydro Corporation
AA64: 44 | AB64: Kitchener-Wilmot Hydro Inc.
AA65: 45 | AB65: Lakefront Utilities Inc.
AA66: 46 | AB66: Lakeland Power Distribution Ltd.
AA67: 47 | AB67: London Hydro Inc.
AA68: 48 | AB68: Middlesex Power Distribution Corporation
AA69: 49 | AB69: Middlesex Power Distribution Corporation - Dutton
AA70: 50 | AB70: Middlesex Power Distribution Corporation - Newbury
AA71: 51 | AB71: Midland Power Utility Corporation
AA72: 52 | AB72: Milton Hydro Distribution inc.
AA73: 53 | AB73: Newmarket - Tay Power Distribution Ltd.
AA74: 54 | AB74: Niagara Peninsula Energy Inc.
AA75: 55 | AB75: Niagara-on-the-Lake Hydro Inc.
AA76: 56 | AB76: Norfolk Power Distribution Inc.
AA77: 57 | AB77: North Bay Hydro Distribution Limited
AA78: 58 | AB78: Northern Ontario Wires Inc.
AA79: 59 | AB79: Oakville Hydro Electricity Distribution Inc.
AA80: 60 | AB80: Orangeville Hydro Limited
AA81: 61 | AB81: Orillia Power Distribution Corporation
AA82: 62 | AB82: Oshawa PUC Networks Inc.
AA83: 63 | AB83: Ottawa River Power Corporation
AA84: 64 | AB84: Parry Sound Power Corporation
AA85: 65 | AB85: Peterborough Distribution Incorporated
AA86: 66 | AB86: PowerStream Inc. - Barrie
AA87: 67 | AB87: PowerStream Inc. - South
AA88: 68 | AB88: PUC Distribution Inc.
AA89: 69 | AB89: Renfrew Hydro Inc.
AA90: 70 | AB90: Rideau St. Lawrence Distribution Inc.
AA91: 71 | AB91: Sioux Lookout Hydro Inc.
AA92: 72 | AB92: St. Thomas Energy Inc.
AA93: 73 | AB93: Thunder Bay Hydro Electricity Distribution Inc.
AA94: 74 | AB94: Tillsonburg Hydro Inc.
AA95: 75 | AB95: Toronto Hydro-Electric System Limited
AA96: 76 | AB96: Veridian Connections Inc.
AA97: 77 | AB97: Veridian Connections Inc. - Gravenhurst
AA98: 78 | AB98: Wasaga Distribution Inc.
AA99: 79 | AB99: Waterloo North Hydro Inc.
AA100: 80 | AB100: Welland Hydro-Electric System Corp.
AA101: 81 | AB101: Wellington North Power Inc.
AA102: 82 | AB102: West Coast Huron Energy Inc.
AA103: 83 | AB103: West Perth Power Inc.
AA104: 84 | AB104: Westario Power Inc.
AA105: 85 | AB105: Whitby Hydro Electric Corporation
AA106: 86 | AB106: Woodstock Hydro Services Inc.

Sheet 2. Smart_Meter_Costs
G18: 2006 | I18: 2007 | K18: 2008 | M18: 2009 | O18: 2010 | Q18: 2011 | S18: 2012 and later | U18: Total
B19: Smart Meter Capital Cost and Operational Expense Data | G19: Audited Actual | I19: Audited Actual | K19: Audited Actual | M19: Audited Actual | O19: Audited Actual | Q19: Audited Actual | S19: Forecast
C21: Smart Meter Installation Plan
C23: Actual/Planned number of Smart Meters installed during the Calendar Year
C25: Residential | U25: =SUM(G25,I25,K25,M25,O25,Q25,S25) -> 0
C27: General Service < 50 kW | M27: 1275 | O27: 758 | Q27: 316 | S27: 12 | U27: =SUM(G27,I27,K27,M27,O27,Q27,S27) -> 2361
C29: Actual/Planned number of Smart Meters installed (Residential and GS < 50 kW only) | G29: =G25+G27 -> 0 | I29: =I25+I27 -> 0 | K29: =K25+K27 -> 0 | M29: =M25+M27 -> 1275 | O29: =O25+O27 -> 758 | Q29: =Q25+Q27 -> 316 | S29: =S25+S27 -> 12 | U29: =SUM(G29,I29,K29,M29,O29,Q29,S29) -> 2361
C31: Percentage of Residential and GS < 50 kW Smart Meter Installations Completed | G31: =IF($U29=0,0,G29/$U29) -> 0 | I31: =IF(G31=100%, 0, IF(ISERROR(SUM(G29:I29)/$U29),0,SUM(G29:I29)/$U29)) -> 0 | K31: =IF(I31=100%, 0, IF(ISERROR(SUM(G29:K29)/$U29), 0, SUM(G29:K29)/$U29)) -> 0 | M31: =IF(K31=100%,0,IF(ISERROR(SUM(G29:M29)/$U29),0,SUM(G29:M29)/$U29)) -> 0.540025413 | O31: =IF(M31=100%,0,IF(ISERROR(SUM(G29:O29)/$U29),0,SUM(G29:O29)/$U29)) -> 0.8610758153 | Q31: =IF(O31=100%,0,IF(ISERROR(SUM(G29:Q29)/$U29),0,SUM(G29:Q29)/$U29)) -> 0.9949174079 | S31: =IF(Q31=100%,0,IF(ISERROR(SUM(G29:S29)/$U29),0,SUM(G29:S29)/$U29)) -> 1 | U31: =IF($U29=0,"",U29/$U29) -> 1
C33: Actual/Planned number of GS > 50 kW meters installed | U33: =SUM(G33,I33,K33,M33,O33,Q33,S33) -> 0
C35: Other (please identify) | U35: =SUM(G35,I35,K35,M35,O35,Q35,S35) -> 0
C37: Total Number of Smart Meters installed or planned to be installed | G37: =SUM(G29,G33,G35) -> 0 | I37: =SUM(I29,I33,I35) -> 0 | K37: =SUM(K29,K33,K35) -> 0 | M37: =SUM(M29,M33,M35) -> 1275 | O37: =SUM(O29,O33,O35) -> 758 | Q37: =SUM(Q29,Q33,Q35) -> 316 | S37: =SUM(S29,S33,S35) -> 12 | U37: =SUM(G37,I37,K37,M37,O37,Q37,S37) -> 2361
B39: 1 | C39: Capital Costs
E40: Asset Type
C41: 1.1 ADVANCED METERING COMMUNICATION DEVICE (AMCD) | E41: Asset type must be selected to enable calculations | G41: =IF(ISBLANK(G19),"",G19) -> Audited Actual | I41: =IF(ISBLANK(I19),"",I19) -> Audited Actual | K41: =IF(ISBLANK(K19),"",K19) -> Audited Actual | M41: =IF(ISBLANK(M19),"",M19) -> Audited Actual | O41: =IF(ISBLANK(O19),"",O19) -> Audited Actual | Q41: =IF(ISBLANK(Q19),"",Q19) -> Audited Actual | S41: =IF(ISBLANK(S19),"",S19) -> Forecast
C42: 1.1.1 Smart Meters (may include new meters and modules, etc.) | E42: Smart Meter | M42: 103674 | O42: 240374 | Q42: 159687 | S42: 2954 | U42: =SUM(G42,I42,K42,M42,O42,Q42,S42) -> 506689
C44: 1.1.2 Installation Costs (may include socket kits, labour, vehicle, benefits, etc.) | E44: Smart Meter | I44: 8582 | K44: 2859 | M44: =13798+15387 -> 29185 | O44: =4823+55521 -> 60344 | Q44: =913+36622 -> 37535 | S44: 484 | U44: =SUM(G44,I44,K44,M44,O44,Q44,S44) -> 138989
C46: 1.1.3a Workforce Automation Hardware (may include fieldwork handhelds, barcode hardware, etc.) | E46: Computer Hardware | M46: 477 | O46: 4686 | Q46: 585 | U46: =SUM(G46,I46,K46,M46,O46,Q46,S46) -> 5748
C48: 1.1.3b Workforce Automation Software (may include fieldwork handhelds, barcode hardware, etc.) | E48: Computer Software | M48: 245 | O48: 2294 | Q48: 2528 | U48: =SUM(G48,I48,K48,M48,O48,Q48,S48) -> 5067
C50: Total Advanced Metering Communications Devices (AMCD) | G50: =SUM(G42,G44,G46,G48) -> 0 | I50: =SUM(I42,I44,I46,I48) -> 8582 | K50: =SUM(K42,K44,K46,K48) -> 2859 | M50: =SUM(M42,M44,M46,M48) -> 133581 | O50: =SUM(O42,O44,O46,O48) -> 307698 | Q50: =SUM(Q42,Q44,Q46,Q48) -> 200335 | S50: =SUM(S42,S44,S46,S48) -> 3438 | U50: =U42+U44+U46+U48 -> 656493
E52: =E40 -> Asset Type
C53: 1.2 ADVANCED METERING REGIONAL COLLECTOR (AMRC) (includes LAN) | G53: =G41 -> Audited Actual | I53: =I41 -> Audited Actual | K53: =K41 -> Audited Actual | M53: =M41 -> Audited Actual | O53: =O41 -> Audited Actual | Q53: =Q41 -> Audited Actual | S53: =S41 -> Forecast
C54: 1.2.1 Collectors | E54: Smart Meter | M54: 63590 | U54: =SUM(G54,I54,K54,M54,O54,Q54,S54) -> 63590
C56: 1.2.2 Repeaters (may include radio licence, etc.) | E56: Smart Meter | U56: =SUM(G56,I56,K56,M56,O56,Q56,S56) -> 0
C58: 1.2.3 Installation (may include meter seals and rings, collector computer hardware, etc.) | E58: Smart Meter | M58: 7057 | O58: 1404 | Q58: 38 | U58: =SUM(G58,I58,K58,M58,O58,Q58,S58) -> 8499
C60: Total Advanced Metering Regional Collector (AMRC) (Includes LAN) | G60: =G54+G56+G58 -> 0 | I60: =I54+I56+I58 -> 0 | K60: =K54+K56+K58 -> 0 | M60: =M54+M56+M58 -> 70647 | O60: =O54+O56+O58 -> 1404 | Q60: =Q54+Q56+Q58 -> 38 | S60: =S54+S56+S58 -> 0 | U60: =U54+U56+U58 -> 72089
E62: =E52 -> Asset Type
C63: 1.3 ADVANCED METERING CONTROL COMPUTER (AMCC) | G63: =G53 -> Audited Actual | I63: =I53 -> Audited Actual | K63: =K53 -> Audited Actual | M63: =M53 -> Audited Actual | O63: =O53 -> Audited Actual | Q63: =Q53 -> Audited Actual | S63: =S53 -> Forecast
C64: 1.3.1 Computer Hardware | E64: Computer Hardware | U64: =SUM(G64,I64,K64,M64,O64,Q64,S64) -> 0
C66: 1.3.2 Computer Software | E66: Computer Software | U66: =SUM(G66,I66,K66,M66,O66,Q66,S66) -> 0
C68: 1.3.3 Computer Software Licences & Installation (includes hardware and software) | E68: Computer Software | U68: =SUM(G68,I68,K68,M68,O68,Q68,S68) -> 0
C69: (may include AS/400 disk space, backup and recovery computer, UPS, etc.)
C70: Total Advanced Metering Control Computer (AMCC) | G70: =G64+G66+G68 -> 0 | I70: =I64+I66+I68 -> 0 | K70: =K64+K66+K68 -> 0 | M70: =M64+M66+M68 -> 0 | O70: =O64+O66+O68 -> 0 | Q70: =Q64+Q66+Q68 -> 0 | S70: =S64+S66+S68 -> 0 | U70: =U64+U66+U68 -> 0
E72: =E62 -> Asset Type
C73: 1.4 WIDE AREA NETWORK (WAN) | G73: =G63 -> Audited Actual | I73: =I63 -> Audited Actual | K73: =K63 -> Audited Actual | M73: =M63 -> Audited Actual | O73: =O63 -> Audited Actual | Q73: =Q63 -> Audited Actual | S73: =S63 -> Forecast
C75: 1.4.1 Activiation Fees | U75: =SUM(G75,I75,K75,M75,O75,Q75,S75) -> 0
C77: Total Wide Area Network (WAN) | G77: =G75 -> 0 | I77: =I75 -> 0 | K77: =K75 -> 0 | M77: =M75 -> 0 | O77: =O75 -> 0 | Q77: =Q75 -> 0 | S77: =S75 -> 0 | U77: =U75 -> 0
E79: =E72 -> Asset Type
C80: 1.5 OTHER AMI CAPITAL COSTS RELATED TO MINIMUM FUNCTIONALITY | G80: =G73 -> Audited Actual | I80: =I73 -> Audited Actual | K80: =K73 -> Audited Actual | M80: =M73 -> Audited Actual | O80: =O73 -> Audited Actual | Q80: =Q73 -> Audited Actual | S80: =S73 -> Forecast
C82: 1.5.1 Customer Equipment (including repair of damaged equipment) | U82: =SUM(G82,I82,K82,M82,O82,Q82,S82) -> 0
C84: 1.5.2 AMI Interface to CIS | E84: Computer Software | M84: 273 | O84: 497 | Q84: 66 | U84: =SUM(G84,I84,K84,M84,O84,Q84,S84) -> 836
C86: 1.5.3 Professional Fees | E86: Smart Meter | I86: 1608 | K86: 1678 | M86: 2893 | O86: 1963 | Q86: 1210 | U86: =SUM(G86,I86,K86,M86,O86,Q86,S86) -> 9352
C88: 1.5.4 Integration | E88: Computer Software | O88: 893 | Q88: 225 | U88: =SUM(G88,I88,K88,M88,O88,Q88,S88) -> 1118
C90: 1.5.5 Program Management | U90: =SUM(G90,I90,K90,M90,O90,Q90,S90) -> 0
C92: 1.5.6 Other AMI Capital | E92: Smart Meter | O92: 47 | Q92: 13 | U92: =SUM(G92,I92,K92,M92,O92,Q92,S92) -> 60
C94: Total Other AMI Capital Costs Related to Minimum Functionality | G94: =SUM(G82,G84,G86,G88,G90,G92) -> 0 | I94: =SUM(I82,I84,I86,I88,I90,I92) -> 1608 | K94: =SUM(K82,K84,K86,K88,K90,K92) -> 1678 | M94: =SUM(M82,M84,M86,M88,M90,M92) -> 3166 | O94: =SUM(O82,O84,O86,O88,O90,O92) -> 3400 | Q94: =SUM(Q82,Q84,Q86,Q88,Q90,Q92) -> 1514 | S94: =SUM(S82,S84,S86,S88,S90,S92) -> 0 | U94: =SUM(U82,U84,U86,U88,U90,U92) -> 11366
C96: Total Capital Costs Related to Minimum Functionality | G96: =SUM(G50,G60,G70,G77,G94) -> 0 | I96: =SUM(I50,I60,I70,I77,I94) -> 10190 | K96: =SUM(K50,K60,K70,K77,K94) -> 4537 | M96: =SUM(M50,M60,M70,M77,M94) -> 207394 | O96: =SUM(O50,O60,O70,O77,O94) -> 312502 | Q96: =SUM(Q50,Q60,Q70,Q77,Q94) -> 201887 | S96: =SUM(S50,S60,S70,S77,S94) -> 3438 | U96: =SUM(U50,U60,U70,U77,U94) -> 739948
E98: =E79 -> Asset Type
C99: 1.6 CAPITAL COSTS BEYOND MINIMUM FUNCTIONALITY | G99: =G80 -> Audited Actual | I99: =I80 -> Audited Actual | K99: =K80 -> Audited Actual | M99: =M80 -> Audited Actual | O99: =O80 -> Audited Actual | Q99: =Q80 -> Audited Actual | S99: =S80 -> Forecast
C100: (Please provide a descriptive title and identify nature of beyond minimum functionality costs)
C101: 1.6.1 Costs related to technical capabilities in the smart meters or related communications infrastructure that exceed those specified in O.Reg 425/06 | E101: Computer Software | U101: =SUM(G101,I101,K101,M101,O101,Q101,S101) -> 0
C103: 1.6.2 Costs for deployment of smart meters to customers other than residential and small general service | E103: Applications Software | U103: =SUM(G103,I103,K103,M103,O103,Q103,S103) -> 0
C105: 1.6.3 Costs for TOU rate implementation, CIS system upgrades, web presentation, integration with the MDM/R, etc. | E105: Smart Meter | O105: 479 | Q105: 3587 | U105: =SUM(G105,I105,K105,M105,O105,Q105,S105) -> 4066
C107: Total Capital Costs Beyond Minimum Functionality | G107: =SUM(G101,G103,G105) -> 0 | I107: =SUM(I101,I103,I105) -> 0 | K107: =SUM(K101,K103,K105) -> 0 | M107: =SUM(M101,M103,M105) -> 0 | O107: =SUM(O101,O103,O105) -> 479 | Q107: =SUM(Q101,Q103,Q105) -> 3587 | S107: =SUM(S101,S103,S105) -> 0 | U107: =SUM(U101,U103,U105) -> 4066
C109: Total Smart Meter Capital Costs | G109: =G96+G107 -> 0 | I109: =I96+I107 -> 10190 | K109: =K96+K107 -> 4537 | M109: =M96+M107 -> 207394 | O109: =O96+O107 -> 312981 | Q109: =Q96+Q107 -> 205474 | S109: =S96+S107 -> 3438 | U109: =U96+U107 -> 744014
B111: 2 | C111: OM&A Expenses
C112: 2.1 ADVANCED METERING COMMUNICATION DEVICE (AMCD) | G112: =G99 -> Audited Actual | I112: =I99 -> Audited Actual | K112: =K99 -> Audited Actual | M112: =M99 -> Audited Actual | O112: =O99 -> Audited Actual | Q112: =Q99 -> Audited Actual | S112: =S99 -> Forecast
C114: 2.1.1 Maintenance (may include meter reverification costs, etc.) | M114: 3211 | O114: 1342 | Q114: 8849 | S114: 13500 | U114: =SUM(G114,I114,K114,M114,O114,Q114,S114) -> 26902
C116: 2.1.2 Other (please specifiy) | U116: =SUM(G116,I116,K116,M116,O116,Q116,S116) -> 0
C118: Total Incremental AMCD OM&A Costs | G118: =SUM(G114,G116) -> 0 | I118: =SUM(I114,I116) -> 0 | K118: =SUM(K114,K116) -> 0 | M118: =SUM(M114,M116) -> 3211 | O118: =SUM(O114,O116) -> 1342 | Q118: =SUM(Q114,Q116) -> 8849 | S118: =SUM(S114,S116) -> 13500 | U118: =SUM(U114,U116) -> 26902
C120: 2.2 ADVANCED METERING REGIONAL COLLECTOR (AMRC) (includes LAN)
C122: 2.2.1 Maintenance | M122: 9374 | O122: 16882 | Q122: 12526 | S122: =13615+2878 -> 16493 | U122: =SUM(G122,I122,K122,M122,O122,Q122,S122) -> 55275
C124: 2.2.2 Other (please specifiy) | D124: Additional Insurance re: Tower Gateway Base Stations | M124: 171 | U124: =SUM(G124,I124,K124,M124,O124,Q124,S124) -> 171
C126: Total Incremental AMRC OM&A Costs | G126: =SUM(G122,G124) -> 0 | I126: =SUM(I122,I124) -> 0 | K126: =SUM(K122,K124) -> 0 | M126: =SUM(M122,M124) -> 9545 | O126: =SUM(O122,O124) -> 16882 | Q126: =SUM(Q122,Q124) -> 12526 | S126: =SUM(S122,S124) -> 16493 | U126: =SUM(U122,U124) -> 55446
C128: 2.3 ADVANCED METERING CONTROL COMPUTER (AMCC)
C130: 2.3.1 Hardware Maintenance (may include server support, etc.) | U130: =SUM(G130,I130,K130,M130,O130,Q130,S130) -> 0
C132: 2.3.2 Software Maintenance (may include maintenance support, etc.) | U132: =SUM(G132,I132,K132,M132,O132,Q132,S132) -> 0
C134: 2.3.2 Other (please specifiy) | U134: =SUM(G134,I134,K134,M134,O134,Q134,S134) -> 0
C136: Total Incremental AMCC OM&A Costs | G136: =SUM(G130,G132,G134) -> 0 | I136: =SUM(I130,I132,I134) -> 0 | K136: =SUM(K130,K132,K134) -> 0 | M136: =SUM(M130,M132,M134) -> 0 | O136: =SUM(O130,O132,O134) -> 0 | Q136: =SUM(Q130,Q132,Q134) -> 0 | S136: =SUM(S130,S132,S134) -> 0 | U136: =SUM(U130,U132,U134) -> 0
C138: 2.4 WIDE AREA NETWORK (WAN)
C140: 2.4.1 WAN Maintenance | U140: =SUM(G140,I140,K140,M140,O140,Q140,S140) -> 0
C142: 2.4.2 Other (please specifiy) | U142: =SUM(G142,I142,K142,M142,O142,Q142,S142) -> 0
C144: Total Incremental AMRC OM&A Costs | G144: =SUM(G140,G142) -> 0 | I144: =SUM(I140,I142) -> 0 | K144: =SUM(K140,K142) -> 0 | M144: =SUM(M140,M142) -> 0 | O144: =SUM(O140,O142) -> 0 | Q144: =SUM(Q140,Q142) -> 0 | S144: =SUM(S140,S142) -> 0 | U144: =SUM(U140,U142) -> 0
C146: 2.5 OTHER AMI OM&A COSTS RELATED TO MINIMUM FUNCTIONALITY
C148: 2.5.1 Business Process Redesign | U148: =SUM(G148,I148,K148,M148,O148,Q148,S148) -> 0
C150: 2.5.2 Customer Communication (may include project communication, etc.) | M150: 3428 | Q150: 732 | S150: 1013 | U150: =SUM(G150,I150,K150,M150,O150,Q150,S150) -> 5173
C152: 2.5.3 Program Management | O152: 2147 | Q152: 4305 | S152: =1580+622+3770 -> 5972 | U152: =SUM(G152,I152,K152,M152,O152,Q152,S152) -> 12424
C154: 2.5.4 Change Management (may include training, etc.) | O154: 366 | Q154: 115 | U154: =SUM(G154,I154,K154,M154,O154,Q154,S154) -> 481
C156: 2.5.5 Administration Costs | M156: 1210 | O156: 3864 | Q156: 4931 | S156: =1060+6454 -> 7514 | U156: =SUM(G156,I156,K156,M156,O156,Q156,S156) -> 17519
C158: 2.5.6 Other AMI Expenses | O158: 1329 | Q158: 1788 | S158: =1463+563+209+626+485 -> 3346 | U158: =SUM(G158,I158,K158,M158,O158,Q158,S158) -> 6463
C159: (please specify)
C160: Total Other AMI OM&A Costs Related to Minimum Functionality | G160: =SUM(G158,G156,G154,G152,G150,G148) -> 0 | I160: =SUM(I158,I156,I154,I152,I150,I148) -> 0 | K160: =SUM(K158,K156,K154,K152,K150,K148) -> 0 | M160: =SUM(M158,M156,M154,M152,M150,M148) -> 4638 | O160: =SUM(O158,O156,O154,O152,O150,O148) -> 7706 | Q160: =SUM(Q158,Q156,Q154,Q152,Q150,Q148) -> 11871 | S160: =SUM(S158,S156,S154,S152,S150,S148) -> 17845 | U160: =SUM(U154,U156,U158,U152,U150,U148) -> 42060
C162: TOTAL OM&A COSTS RELATED TO MINIMUM FUNCTIONALITY | G162: =SUM(G118,G126,G136,G144,G160) -> 0 | I162: =SUM(I118,I126,I136,I144,I160) -> 0 | K162: =SUM(K118,K126,K136,K144,K160) -> 0 | M162: =SUM(M118,M126,M136,M144,M160) -> 17394 | O162: =SUM(O118,O126,O136,O144,O160) -> 25930 | Q162: =SUM(Q118,Q126,Q136,Q144,Q160) -> 33246 | S162: =SUM(S118,S126,S136,S144,S160) -> 47838 | U162: =SUM(U118,U126,U136,U144,U160) -> 124408
C164: 2.6 OM&A COSTS RELATED TO BEYOND MINIMUM FUNCTIONALITY | G164: =G112 -> Audited Actual | I164: =I112 -> Audited Actual | K164: =K112 -> Audited Actual | M164: =M112 -> Audited Actual | O164: =O112 -> Audited Actual | Q164: =Q112 -> Audited Actual
C165: (Please provide a descriptive title and identify nature of beyond minimum functionality costs)
C166: 2.6.1 Costs related to technical capabilities in the smart meters or related communications infrastructure that exceed those specified in O.Reg 425/06 | U166: =SUM(G166,I166,K166,M166,O166,Q166,S166) -> 0
C168: 2.6.2 Costs for deployment of smart meters to customers other than residential and small general service | U168: =SUM(G168,I168,K168,M168,O168,Q168,S168) -> 0
C170: 2.6.3 Costs for TOU rate implementation, CIS system upgrades, web presentation, integration with the MDM/R, etc. | O170: 34 | Q170: 5430 | S170: 116 | U170: =SUM(G170,I170,K170,M170,O170,Q170,S170) -> 5580
C172: Total OM&A Costs Beyond Minimum Functionality | G172: =SUM(G166,G168,G170) -> 0 | I172: =SUM(I166,I168,I170) -> 0 | K172: =SUM(K166,K168,K170) -> 0 | M172: =SUM(M166,M168,M170) -> 0 | O172: =SUM(O166,O168,O170) -> 34 | Q172: =SUM(Q166,Q168,Q170) -> 5430 | S172: =SUM(S166,S168,S170) -> 116 | U172: =SUM(U166,U168,U170) -> 5580
C174: Total Smart Meter OM&A Costs | G174: =G162+G172 -> 0 | I174: =I162+I172 -> 0 | K174: =K162+K172 -> 0 | M174: =M162+M172 -> 17394 | O174: =O162+O172 -> 25964 | Q174: =Q162+Q172 -> 38676 | S174: =S162+S172 -> 47954 | U174: =U162+U172 -> 129988
B177: 3 | C177: Aggregate Smart Meter Costs by Category
C179: 3.1 | D179: Capital
C181: 3.1.1 | D181: Smart Meter | G181: =SUMIF($E$42:$E$105,$D181,G$42:G$105) -> 0 | I181: =SUMIF($E$42:$E$105,$D181,I$42:I$105) -> 10190 | K181: =SUMIF($E$42:$E$105,$D181,K$42:K$105) -> 4537 | M181: =SUMIF($E$42:$E$105,$D181,M$42:M$105) -> 206399 | O181: =SUMIF($E$42:$E$105,$D181,O$42:O$105) -> 304611 | Q181: =SUMIF($E$42:$E$105,$D181,Q$42:Q$105) -> 202070 | S181: =SUMIF($E$42:$E$105,$D181,S$42:S$105) -> 3438 | U181: =SUM(G181:S181) -> 731245
C183: 3.1.2 | D183: Computer Hardware | G183: =SUMIF($E$42:$E$105,$D183,G$42:G$105) -> 0 | I183: =SUMIF($E$42:$E$105,$D183,I$42:I$105) -> 0 | K183: =SUMIF($E$42:$E$105,$D183,K$42:K$105) -> 0 | M183: =SUMIF($E$42:$E$105,$D183,M$42:M$105) -> 477 | O183: =SUMIF($E$42:$E$105,$D183,O$42:O$105) -> 4686 | Q183: =SUMIF($E$42:$E$105,$D183,Q$42:Q$105) -> 585 | S183: =SUMIF($E$42:$E$105,$D183,S$42:S$105) -> 0 | U183: =SUM(G183:S183) -> 5748
C185: 3.1.3 | D185: Computer Software | G185: =SUMIF($E$42:$E$105,$D185,G$42:G$105) -> 0 | I185: =SUMIF($E$42:$E$105,$D185,I$42:I$105) -> 0 | K185: =SUMIF($E$42:$E$105,$D185,K$42:K$105) -> 0 | M185: =SUMIF($E$42:$E$105,$D185,M$42:M$105) -> 518 | O185: =SUMIF($E$42:$E$105,$D185,O$42:O$105) -> 3684 | Q185: =SUMIF($E$42:$E$105,$D185,Q$42:Q$105) -> 2819 | S185: =SUMIF($E$42:$E$105,$D185,S$42:S$105) -> 0 | U185: =SUM(G185:S185) -> 7021
C187: 3.1.4 | D187: Tools & Equipment | G187: =SUMIF($E$42:$E$105,$D187,G$42:G$105) -> 0 | I187: =SUMIF($E$42:$E$105,$D187,I$42:I$105) -> 0 | K187: =SUMIF($E$42:$E$105,$D187,K$42:K$105) -> 0 | M187: =SUMIF($E$42:$E$105,$D187,M$42:M$105) -> 0 | O187: =SUMIF($E$42:$E$105,$D187,O$42:O$105) -> 0 | Q187: =SUMIF($E$42:$E$105,$D187,Q$42:Q$105) -> 0 | S187: =SUMIF($E$42:$E$105,$D187,S$42:S$105) -> 0 | U187: =SUM(G187:S187) -> 0
C189: 3.1.5 | D189: Other Equipment | G189: =SUMIF($E$42:$E$105,$D189,G$42:G$105) -> 0 | I189: =SUMIF($E$42:$E$105,$D189,I$42:I$105) -> 0 | K189: =SUMIF($E$42:$E$105,$D189,K$42:K$105) -> 0 | M189: =SUMIF($E$42:$E$105,$D189,M$42:M$105) -> 0 | O189: =SUMIF($E$42:$E$105,$D189,O$42:O$105) -> 0 | Q189: =SUMIF($E$42:$E$105,$D189,Q$42:Q$105) -> 0 | S189: =SUMIF($E$42:$E$105,$D189,S$42:S$105) -> 0 | U189: =SUM(G189:S189) -> 0
C191: 3.1.6 | D191: Applications Software | G191: =SUMIF($E$42:$E$105,$D191,G$42:G$105) -> 0 | I191: =SUMIF($E$42:$E$105,$D191,I$42:I$105) -> 0 | K191: =SUMIF($E$42:$E$105,$D191,K$42:K$105) -> 0 | M191: =SUMIF($E$42:$E$105,$D191,M$42:M$105) -> 0 | O191: =SUMIF($E$42:$E$105,$D191,O$42:O$105) -> 0 | Q191: =SUMIF($E$42:$E$105,$D191,Q$42:Q$105) -> 0 | S191: =SUMIF($E$42:$E$105,$D191,S$42:S$105) -> 0 | U191: =SUM(G191:S191) -> 0
C193: 3.1.7 | D193: Total Capital Costs | G193: =SUM(G181:G191) -> 0 | I193: =SUM(I181:I191) -> 10190 | K193: =SUM(K181:K191) -> 4537 | M193: =SUM(M181:M191) -> 207394 | O193: =SUM(O181:O191) -> 312981 | Q193: =SUM(Q181:Q191) -> 205474 | S193: =SUM(S181:S191) -> 3438 | U193: =SUM(U181:U191) -> 744014
G194: =IF(G193=G109,"","Error") ->  | I194: =IF(I193=I109,"","Error") ->  | K194: =IF(K193=K109,"","Error") ->  | M194: =IF(M193=M109,"","Error") ->  | O194: =IF(O193=O109,"","Error") ->  | Q194: =IF(Q193=Q109,"","Error") ->  | S194: =IF(S193=S109,"","Error") ->  | U194: =IF(U193=U109,"","Error") -> 
C195: 3.2 | D195: OM&A Costs
C197: 3.2.1 | D197: Total OM&A Costs | G197: =G174 -> 0 | I197: =I174 -> 0 | K197: =K174 -> 0 | M197: =M174 -> 17394 | O197: =O174 -> 25964 | Q197: =Q174 -> 38676 | S197: =S174 -> 47954 | U197: =U174 -> 129988

Sheet 3. Cost_of_Service_Parameters
G19: 2006 | I19: 2007 | K19: 2008 | M19: 2009 | O19: 2010 | Q19: 2011 | S19: 2012 and later
B20: Cost of Capital
C21: Capital Structure1
D22: Deemed Short-term Debt Capitalization | O22: 0.04 | Q22: 0.04 | S22: 0.04
D23: Deemed Long-term Debt Capitalization | G23: 0.5 | I23: =G23 -> 0.5 | K23: =IF(I23=50%,53.3%-K22,IF(I23=55%,57.5%-K22,IF(I23=65%,62.5%-K22,60%-K22))) -> 0.533 | M23: =IF(I23=50%,56.7%-M22,60%-M22) -> 0.567 | O23: =60%-O22 -> 0.56 | Q23: =O23 -> 0.56 | S23: =Q23 -> 0.56
D24: Deemed Equity Capitalization | G24: =100%-G23-G25 -> 0.5 | I24: =100%-I23-I25-I22 -> 0.5 | K24: =100%-K23-K25-K22 -> 0.467 | M24: =100%-M23-M25-M22 -> 0.433 | O24: =100%-O23-O25-O22 -> 0.4 | Q24: =100%-Q23-Q25-Q22 -> 0.4 | S24: =100%-S23-S25-S22 -> 0.4
D25: Preferred Shares
C26: Total | G26: =SUM(G22:G25) -> 1 | I26: =SUM(I22:I25) -> 1 | K26: =SUM(K22:K25) -> 1 | M26: =SUM(M22:M25) -> 1 | O26: =SUM(O22:O25) -> 1 | Q26: =SUM(Q22:Q25) -> 1 | S26: =SUM(S22:S25) -> 1
C28: Cost of Capital Parameters
D29: Deemed Short-term Debt Rate | O29: 0.0207 | Q29: 0.0207 | S29: 0.0207
D30: Long-term Debt Rate (actual/embedded/deemed)2 | G30: 0.0605 | I30: =G30 -> 0.0605 | K30: 0.0605 | M30: 0.0605 | O30: 0.0513 | Q30: 0.0513 | S30: 0.0513
D31: Target Return on Equity (ROE) | G31: 0.09 | I31: =G31 -> 0.09 | K31: 0.09 | M31: 0.09 | O31: 0.0985 | Q31: 0.0985 | S31: 0.0985
D32: Return on Preferred Shares
C33: WACC | G33: =SUMPRODUCT(G22:G25,G29:G32) -> 0.07525 | I33: =SUMPRODUCT(I22:I25,I29:I32) -> 0.07525 | K33: =SUMPRODUCT(K22:K25,K29:K32) -> 0.0742765 | M33: =SUMPRODUCT(M22:M25,M29:M32) -> 0.0732735 | O33: =SUMPRODUCT(O22:O25,O29:O32) -> 0.068956 | Q33: =SUMPRODUCT(Q22:Q25,Q29:Q32) -> 0.068956 | S33: =SUMPRODUCT(S22:S25,S29:S32) -> 0.068956
B35: Working Capital Allowance
C36: Working Capital Allowance Rate | G36: 0.15 | I36: 0.15 | K36: 0.15 | M36: 0.15 | O36: 0.15 | Q36: 0.15 | S36: 0.15
C37: (% of the sum of Cost of Power + controllable expenses)
B39: Taxes/PILs
C40: Aggregate Corporate Income Tax Rate | G40: 0.3612 | I40: 0.3612 | K40: 0.335 | M40: 0.33 | O40: 0.2979 | Q40: 0.2825 | S40: 0.2433
C41: Capital Tax (until July 1st, 2010) | G41: 0.003 | I41: 0.00225 | K41: 0.00225 | M41: 0.00225 | O41: 0.00075 | Q41: 0 | S41: 0
B43: Depreciation Rates
B44: (expressed as expected useful life in years)
C45: Smart Meters - years | G45: 15 | I45: 15 | K45: 15 | M45: 15 | O45: 15 | Q45: 15 | S45: 15
C46: - rate (%) | G46: =IF(G45=0,0,1/G45) -> 0.06666666667 | I46: =IF(I45=0,0,1/I45) -> 0.06666666667 | K46: =IF(K45=0,0,1/K45) -> 0.06666666667 | M46: =IF(M45=0,0,1/M45) -> 0.06666666667 | O46: =IF(O45=0,0,1/O45) -> 0.06666666667 | Q46: =IF(Q45=0,0,1/Q45) -> 0.06666666667 | S46: =IF(S45=0,0,1/S45) -> 0.06666666667
C47: Computer Hardware - years | G47: 5 | I47: 5 | K47: 5 | M47: 5 | O47: 5 | Q47: 5 | S47: 5
C48: - rate (%) | G48: =IF(G47=0,0,1/G47) -> 0.2 | I48: =IF(I47=0,0,1/I47) -> 0.2 | K48: =IF(K47=0,0,1/K47) -> 0.2 | M48: =IF(M47=0,0,1/M47) -> 0.2 | O48: =IF(O47=0,0,1/O47) -> 0.2 | Q48: =IF(Q47=0,0,1/Q47) -> 0.2 | S48: =IF(S47=0,0,1/S47) -> 0.2
C49: Computer Software - years | G49: 5 | I49: 5 | K49: 5 | M49: 5 | O49: 5 | Q49: 5 | S49: 5
C50: - rate (%) | G50: =IF(G49=0,0,1/G49) -> 0.2 | I50: =IF(I49=0,0,1/I49) -> 0.2 | K50: =IF(K49=0,0,1/K49) -> 0.2 | M50: =IF(M49=0,0,1/M49) -> 0.2 | O50: =IF(O49=0,0,1/O49) -> 0.2 | Q50: =IF(Q49=0,0,1/Q49) -> 0.2 | S50: =IF(S49=0,0,1/S49) -> 0.2
C51: Tools & Equipment - years | G51: 10 | I51: 10 | K51: 10 | M51: 10 | O51: 10 | Q51: 10 | S51: 10
C52: - rate (%) | G52: =IF(G51=0,0,1/G51) -> 0.1 | I52: =IF(I51=0,0,1/I51) -> 0.1 | K52: =IF(K51=0,0,1/K51) -> 0.1 | M52: =IF(M51=0,0,1/M51) -> 0.1 | O52: =IF(O51=0,0,1/O51) -> 0.1 | Q52: =IF(Q51=0,0,1/Q51) -> 0.1 | S52: =IF(S51=0,0,1/S51) -> 0.1
C53: Other Equipment - years | G53: 10 | I53: 10 | K53: 10 | M53: 10 | O53: 10 | Q53: 10 | S53: 10
C54: - rate (%) | G54: =IF(G53=0,0,1/G53) -> 0.1 | I54: =IF(I53=0,0,1/I53) -> 0.1 | K54: =IF(K53=0,0,1/K53) -> 0.1 | M54: =IF(M53=0,0,1/M53) -> 0.1 | O54: =IF(O53=0,0,1/O53) -> 0.1 | Q54: =IF(Q53=0,0,1/Q53) -> 0.1 | S54: =IF(S53=0,0,1/S53) -> 0.1
B56: CCA Rates
C57: Smart Meters - CCA Class | G57: 47 | I57: 47 | K57: 47 | M57: 47 | O57: 47 | Q57: 47 | S57: 47
C58: Smart Meters - CCA Rate | G58: 0.08 | I58: 0.08 | K58: 0.08 | M58: 0.08 | O58: 0.08 | Q58: 0.08 | S58: 0.08
C60: Computer Equipment - CCA Class | G60: 45 | I60: 45 | K60: 50 | M60: 52 | O60: 52 | Q60: 50 | S60: 50
C61: Computer Equipment - CCA Rate | G61: 0.45 | I61: 0.45 | K61: 0.55 | M61: 1 | O61: 1 | Q61: 0.55 | S61: 0.55
C63: General Equipment - CCA Class | G63: 8 | I63: 8 | K63: 8 | M63: 8 | O63: 8 | Q63: 8 | S63: 8
C64: General Equipment - CCA Rate | G64: 0.2 | I64: 0.2 | K64: 0.2 | M64: 0.2 | O64: 0.2 | Q64: 0.2 | S64: 0.2
C66: Applications Software - CCA Class | G66: 45 | I66: 45 | K66: 50 | M66: 52 | O66: 52 | Q66: 50 | S66: 50
C67: Applications Software - CCA Rate | G67: 0.45 | I67: 0.45 | K67: 0.55 | M67: 1 | O67: 1 | Q67: 0.55 | S67: 0.55
B69: Assumptions
B70: 1 | C70: Planned smart meter installations occur evenly throughout the year.
B71: 2 | C71: Fiscal calendar year (January 1 to December 31) used.
B72: 3 | C72: Amortization is done on a striaght line basis and has the "half-year" rule applied.

Sheet 4. SM_Assets_and_Rate_Base
G18: 2006 | I18: 2007 | K18: 2008 | M18: 2009 | O18: 2010 | Q18: 2011 | S18: 2012 and later
B19: Net Fixed Assets - Smart Meters
C21: Gross Book Value
D22: Opening Balance | I22: =G25 -> 0 | K22: =I25 -> 10190 | M22: =K25 -> 14727 | O22: =M25 -> 221126 | Q22: =O25 -> 525737 | S22: =Q25 -> 727807
D23: Capital Additions during year (from Smart Meter Costs) | G23: ='2. Smart_Meter_Costs'!G181 -> 0 | I23: ='2. Smart_Meter_Costs'!I181 -> 10190 | K23: ='2. Smart_Meter_Costs'!K181 -> 4537 | M23: ='2. Smart_Meter_Costs'!M181 -> 206399 | O23: ='2. Smart_Meter_Costs'!O181 -> 304611 | Q23: ='2. Smart_Meter_Costs'!Q181 -> 202070 | S23: ='2. Smart_Meter_Costs'!S181 -> 3438
D24: Retirements/Removals (if applicable)
D25: Closing Balance | G25: =G22+G23-G24 -> 0 | I25: =I22+I23-I24 -> 10190 | K25: =K22+K23-K24 -> 14727 | M25: =M22+M23-M24 -> 221126 | O25: =O22+O23-O24 -> 525737 | Q25: =Q22+Q23-Q24 -> 727807 | S25: =S22+S23-S24 -> 731245
C27: Accumulated Depreciation
D28: Opening Balance | I28: =G31 -> 0 | K28: =I31 -> -339.6666667 | M28: =K31 -> -1170.233333 | O28: =M31 -> -9032 | Q28: =O31 -> -33927.43333 | S28: =Q31 -> -75712.23333
D29: Amortization expense during year | G29: =IF(ISERROR(-G23/('3. Cost_of_Service_Parameters'!G45*2)), 0, -G23/('3. Cost_of_Service_Parameters'!G45*2)) -> 0 | I29: =IF(ISERROR(-(I23/('3. Cost_of_Service_Parameters'!I45*2)+MIN((I22/'3. Cost_of_Service_Parameters'!I45),(I22+I28)))), 0, -(I23/('3. Cost_of_Service_Parameters'!I45*2)+MIN((I22/'3. Cost_of_Service_Parameters'!I45),(I22+I28)))) -> -339.6666667 | K29: =IF(ISERROR(-(K23/('3. Cost_of_Service_Parameters'!K45*2)+MIN((K22/'3. Cost_of_Service_Parameters'!K45),(K22+K28)))), 0, -(K23/('3. Cost_of_Service_Parameters'!K45*2)+MIN((K22/'3. Cost_of_Service_Parameters'!K45),(K22+K28)))) -> -830.5666667 | M29: =IF(ISERROR(-(M23/('3. Cost_of_Service_Parameters'!M45*2)+MIN((M22/'3. Cost_of_Service_Parameters'!M45),(M22+M28)))), 0,-(M23/('3. Cost_of_Service_Parameters'!M45*2)+MIN((M22/'3. Cost_of_Service_Parameters'!M45),(M22+M28)))) -> -7861.766667 | O29: =IF(ISERROR(-(O23/('3. Cost_of_Service_Parameters'!O45*2)+MIN((O22/'3. Cost_of_Service_Parameters'!O45),(O22+O28)))), 0, -(O23/('3. Cost_of_Service_Parameters'!O45*2)+MIN((O22/'3. Cost_of_Service_Parameters'!O45),(O22+O28)))) -> -24895.43333 | Q29: =IF(ISERROR(-(Q23/('3. Cost_of_Service_Parameters'!Q45*2)+MIN((Q22/'3. Cost_of_Service_Parameters'!Q45),(Q22+Q28)))), 0, -(Q23/('3. Cost_of_Service_Parameters'!Q45*2)+MIN((Q22/'3. Cost_of_Service_Parameters'!Q45),(Q22+Q28)))) -> -41784.8 | S29: =IF(ISERROR(-(S23/('3. Cost_of_Service_Parameters'!S45*2)+MIN((S22/'3. Cost_of_Service_Parameters'!S45),(S22+S28)))), 0, -(S23/('3. Cost_of_Service_Parameters'!S45*2)+MIN((S22/'3. Cost_of_Service_Parameters'!S45),(S22+S28)))) -> -48635.06667
D30: Retirements/Removals (if applicable)
D31: Closing Balance | G31: =G28+G29-G30 -> 0 | I31: =I28+I29-I30 -> -339.6666667 | K31: =K28+K29-K30 -> -1170.233333 | M31: =M28+M29-M30 -> -9032 | O31: =O28+O29-O30 -> -33927.43333 | Q31: =Q28+Q29-Q30 -> -75712.23333 | S31: =S28+S29-S30 -> -124347.3
C33: Net Book Value
D34: Opening Balance | G34: =G22+G28 -> 0 | I34: =G35 -> 0 | K34: =I35 -> 9850.333333 | M34: =K35 -> 13556.76667 | O34: =M35 -> 212094 | Q34: =O35 -> 491809.5667 | S34: =Q35 -> 652094.7667
D35: Closing Balance | G35: =G25+G31 -> 0 | I35: =I25+I31 -> 9850.333333 | K35: =K25+K31 -> 13556.76667 | M35: =M25+M31 -> 212094 | O35: =O25+O31 -> 491809.5667 | Q35: =Q25+Q31 -> 652094.7667 | S35: =S25+S31 -> 606897.7
D36: Average Net Book Value | G36: =AVERAGE(G34:G35) -> 0 | I36: =AVERAGE(I34:I35) -> 4925.166667 | K36: =AVERAGE(K34:K35) -> 11703.55 | M36: =AVERAGE(M34:M35) -> 112825.3833 | O36: =AVERAGE(O34:O35) -> 351951.7833 | Q36: =AVERAGE(Q34:Q35) -> 571952.1667 | S36: =AVERAGE(S34:S35) -> 629496.2333
B38: Net Fixed Assets - Computer Hardware
C40: Gross Book Value
D41: Opening Balance | I41: =G44 -> 0 | K41: =I44 -> 0 | M41: =K44 -> 0 | O41: =M44 -> 477 | Q41: =O44 -> 5163 | S41: =Q44 -> 5748
D42: Capital Additions during year (from Smart Meter Costs) | G42: ='2. Smart_Meter_Costs'!G183 -> 0 | I42: ='2. Smart_Meter_Costs'!I183 -> 0 | K42: ='2. Smart_Meter_Costs'!K183 -> 0 | M42: ='2. Smart_Meter_Costs'!M183 -> 477 | O42: ='2. Smart_Meter_Costs'!O183 -> 4686 | Q42: ='2. Smart_Meter_Costs'!Q183 -> 585 | S42: ='2. Smart_Meter_Costs'!S183 -> 0
D43: Retirements/Removals (if applicable)
D44: Closing Balance | G44: =G41+G42-G43 -> 0 | I44: =I41+I42-I43 -> 0 | K44: =K41+K42-K43 -> 0 | M44: =M41+M42-M43 -> 477 | O44: =O41+O42-O43 -> 5163 | Q44: =Q41+Q42-Q43 -> 5748 | S44: =S41+S42-S43 -> 5748
C46: Accumulated Depreciation
D47: Opening Balance | G47: 0 | I47: =G50 -> 0 | K47: =I50 -> 0 | M47: =K50 -> 0 | O47: =M50 -> -47.7 | Q47: =O50 -> -611.7 | S47: =Q50 -> -1702.8
D48: Amortization expense during year | G48: =IF(ISERROR(-G42/('3. Cost_of_Service_Parameters'!G47*2)), 0, -G42/('3. Cost_of_Service_Parameters'!G47*2)) -> 0 | I48: =IF(ISERROR(-(I42/('3. Cost_of_Service_Parameters'!I47*2)+MIN((I41/'3. Cost_of_Service_Parameters'!I47),(I41+I47)))), 0, -(I42/('3. Cost_of_Service_Parameters'!I47*2)+MIN((I41/'3. Cost_of_Service_Parameters'!I47),(I41+I47)))) -> 0 | K48: =IF(ISERROR(-(K42/('3. Cost_of_Service_Parameters'!K47*2)+MIN((K41/'3. Cost_of_Service_Parameters'!K47),(K41+K47)))), 0, -(K42/('3. Cost_of_Service_Parameters'!K47*2)+MIN((K41/'3. Cost_of_Service_Parameters'!K47),(K41+K47)))) -> 0 | M48: =IF(ISERROR(-(M42/('3. Cost_of_Service_Parameters'!M47*2)+MIN((M41/'3. Cost_of_Service_Parameters'!M47),(M41+M47)))), 0,-(M42/('3. Cost_of_Service_Parameters'!M47*2)+MIN((M41/'3. Cost_of_Service_Parameters'!M47),(M41+M47)))) -> -47.7 | O48: =IF(ISERROR(-(O42/('3. Cost_of_Service_Parameters'!O47*2)+MIN((O41/'3. Cost_of_Service_Parameters'!O47),(O41+O47)))), 0, -(O42/('3. Cost_of_Service_Parameters'!O47*2)+MIN((O41/'3. Cost_of_Service_Parameters'!O47),(O41+O47)))) -> -564 | Q48: =IF(ISERROR(-(Q42/('3. Cost_of_Service_Parameters'!Q47*2)+MIN((Q41/'3. Cost_of_Service_Parameters'!Q47),(Q41+Q47)))), 0, -(Q42/('3. Cost_of_Service_Parameters'!Q47*2)+MIN((Q41/'3. Cost_of_Service_Parameters'!Q47),(Q41+Q47)))) -> -1091.1 | S48: =IF(ISERROR(-(S42/('3. Cost_of_Service_Parameters'!S47*2)+MIN((S41/'3. Cost_of_Service_Parameters'!S47),(S41+S47)))), 0, -(S42/('3. Cost_of_Service_Parameters'!S47*2)+MIN((S41/'3. Cost_of_Service_Parameters'!S47),(S41+S47)))) -> -1149.6
D49: Retirements/Removals (if applicable)
D50: Closing Balance | G50: =G47+G48-G49 -> 0 | I50: =I47+I48-I49 -> 0 | K50: =K47+K48-K49 -> 0 | M50: =M47+M48-M49 -> -47.7 | O50: =O47+O48-O49 -> -611.7 | Q50: =Q47+Q48-Q49 -> -1702.8 | S50: =S47+S48-S49 -> -2852.4
C52: Net Book Value
D53: Opening Balance | G53: =G41+G47 -> 0 | I53: =G54 -> 0 | K53: =I54 -> 0 | M53: =K54 -> 0 | O53: =M54 -> 429.3 | Q53: =O54 -> 4551.3 | S53: =Q54 -> 4045.2
D54: Closing Balance | G54: =G44+G50 -> 0 | I54: =I44+I50 -> 0 | K54: =K44+K50 -> 0 | M54: =M44+M50 -> 429.3 | O54: =O44+O50 -> 4551.3 | Q54: =Q44+Q50 -> 4045.2 | S54: =S44+S50 -> 2895.6
D55: Average Net Book Value | G55: =AVERAGE(G53:G54) -> 0 | I55: =AVERAGE(I53:I54) -> 0 | K55: =AVERAGE(K53:K54) -> 0 | M55: =AVERAGE(M53:M54) -> 214.65 | O55: =AVERAGE(O53:O54) -> 2490.3 | Q55: =AVERAGE(Q53:Q54) -> 4298.25 | S55: =AVERAGE(S53:S54) -> 3470.4
B57: Net Fixed Assets - Computer Software (including Applications Software)
C59: Gross Book Value
D60: Opening Balance | I60: =G63 -> 0 | K60: =I63 -> 0 | M60: =K63 -> 0 | O60: =M63 -> 518 | Q60: =O63 -> 4202 | S60: =Q63 -> 7021
D61: Capital Additions during year (from Smart Meter Costs) | G61: ='2. Smart_Meter_Costs'!G185+'2. Smart_Meter_Costs'!G191 -> 0 | I61: ='2. Smart_Meter_Costs'!I185+'2. Smart_Meter_Costs'!I191 -> 0 | K61: ='2. Smart_Meter_Costs'!K185+'2. Smart_Meter_Costs'!K191 -> 0 | M61: ='2. Smart_Meter_Costs'!M185+'2. Smart_Meter_Costs'!M191 -> 518 | O61: ='2. Smart_Meter_Costs'!O185+'2. Smart_Meter_Costs'!O191 -> 3684 | Q61: ='2. Smart_Meter_Costs'!Q185+'2. Smart_Meter_Costs'!Q191 -> 2819 | S61: ='2. Smart_Meter_Costs'!S185+'2. Smart_Meter_Costs'!S191 -> 0
D62: Retirements/Removals (if applicable)
D63: Closing Balance | G63: =G60+G61-G62 -> 0 | I63: =I60+I61-I62 -> 0 | K63: =K60+K61-K62 -> 0 | M63: =M60+M61-M62 -> 518 | O63: =O60+O61-O62 -> 4202 | Q63: =Q60+Q61-Q62 -> 7021 | S63: =S60+S61-S62 -> 7021
C65: Accumulated Depreciation
D66: Opening Balance | G66: 0 | I66: =G69 -> 0 | K66: =I69 -> 0 | M66: =K69 -> 0 | O66: =M69 -> -51.8 | Q66: =O69 -> -523.8 | S66: =Q69 -> -1646.1
D67: Amortization expense during year | G67: =IF(ISERROR(-G61/('3. Cost_of_Service_Parameters'!G49*2)), 0, -G61/('3. Cost_of_Service_Parameters'!G49*2)) -> 0 | I67: =IF(ISERROR(-(I61/('3. Cost_of_Service_Parameters'!I49*2)+MIN((I60/'3. Cost_of_Service_Parameters'!I49),(I60+I66)))), 0, -(I61/('3. Cost_of_Service_Parameters'!I49*2)+MIN((I60/'3. Cost_of_Service_Parameters'!I49),(I60+I66)))) -> 0 | K67: =IF(ISERROR(-(K61/('3. Cost_of_Service_Parameters'!K49*2)+MIN((K60/'3. Cost_of_Service_Parameters'!K49),(K60+K66)))), 0, -(K61/('3. Cost_of_Service_Parameters'!K49*2)+MIN((K60/'3. Cost_of_Service_Parameters'!K49),(K60+K66)))) -> 0 | M67: =IF(ISERROR(-(M61/('3. Cost_of_Service_Parameters'!M49*2)+MIN((M60/'3. Cost_of_Service_Parameters'!M49),(M60+M66)))), 0,-(M61/('3. Cost_of_Service_Parameters'!M49*2)+MIN((M60/'3. Cost_of_Service_Parameters'!M49),(M60+M66)))) -> -51.8 | O67: =IF(ISERROR(-(O61/('3. Cost_of_Service_Parameters'!O49*2)+MIN((O60/'3. Cost_of_Service_Parameters'!O49),(O60+O66)))), 0, -(O61/('3. Cost_of_Service_Parameters'!O49*2)+MIN((O60/'3. Cost_of_Service_Parameters'!O49),(O60+O66)))) -> -472 | Q67: =IF(ISERROR(-(Q61/('3. Cost_of_Service_Parameters'!Q49*2)+MIN((Q60/'3. Cost_of_Service_Parameters'!Q49),(Q60+Q66)))), 0, -(Q61/('3. Cost_of_Service_Parameters'!Q49*2)+MIN((Q60/'3. Cost_of_Service_Parameters'!Q49),(Q60+Q66)))) -> -1122.3 | S67: =IF(ISERROR(-(S61/('3. Cost_of_Service_Parameters'!S49*2)+MIN((S60/'3. Cost_of_Service_Parameters'!S49),(S60+S66)))), 0, -(S61/('3. Cost_of_Service_Parameters'!S49*2)+MIN((S60/'3. Cost_of_Service_Parameters'!S49),(S60+S66)))) -> -1404.2
D68: Retirements/Removals (if applicable)
D69: Closing Balance | G69: =G66+G67-G68 -> 0 | I69: =I66+I67-I68 -> 0 | K69: =K66+K67-K68 -> 0 | M69: =M66+M67-M68 -> -51.8 | O69: =O66+O67-O68 -> -523.8 | Q69: =Q66+Q67-Q68 -> -1646.1 | S69: =S66+S67-S68 -> -3050.3
C71: Net Book Value
D72: Opening Balance | G72: =G60+G66 -> 0 | I72: =G73 -> 0 | K72: =I73 -> 0 | M72: =K73 -> 0 | O72: =M73 -> 466.2 | Q72: =O73 -> 3678.2 | S72: =Q73 -> 5374.9
D73: Closing Balance | G73: =G63+G69 -> 0 | I73: =I63+I69 -> 0 | K73: =K63+K69 -> 0 | M73: =M63+M69 -> 466.2 | O73: =O63+O69 -> 3678.2 | Q73: =Q63+Q69 -> 5374.9 | S73: =S63+S69 -> 3970.7
D74: Average Net Book Value | G74: =AVERAGE(G72:G73) -> 0 | I74: =AVERAGE(I72:I73) -> 0 | K74: =AVERAGE(K72:K73) -> 0 | M74: =AVERAGE(M72:M73) -> 233.1 | O74: =AVERAGE(O72:O73) -> 2072.2 | Q74: =AVERAGE(Q72:Q73) -> 4526.55 | S74: =AVERAGE(S72:S73) -> 4672.8
B76: Net Fixed Assets - Tools and Equipment
C78: Gross Book Value
D79: Opening Balance | I79: =G82 -> 0 | K79: =I82 -> 0 | M79: =K82 -> 0 | O79: =M82 -> 0 | Q79: =O82 -> 0 | S79: =Q82 -> 0
D80: Capital Additions during year (from Smart Meter Costs) | G80: ='2. Smart_Meter_Costs'!G187 -> 0 | I80: ='2. Smart_Meter_Costs'!I187 -> 0 | K80: ='2. Smart_Meter_Costs'!K187 -> 0 | M80: ='2. Smart_Meter_Costs'!M187 -> 0 | O80: ='2. Smart_Meter_Costs'!O187 -> 0 | Q80: ='2. Smart_Meter_Costs'!Q187 -> 0 | S80: ='2. Smart_Meter_Costs'!S187 -> 0
D81: Retirements/Removals (if applicable)
D82: Closing Balance | G82: =G79+G80-G81 -> 0 | I82: =I79+I80-I81 -> 0 | K82: =K79+K80-K81 -> 0 | M82: =M79+M80-M81 -> 0 | O82: =O79+O80-O81 -> 0 | Q82: =Q79+Q80-Q81 -> 0 | S82: =S79+S80-S81 -> 0
C84: Accumulated Depreciation
D85: Opening Balance | G85: 0 | I85: =G88 -> 0 | K85: =I88 -> 0 | M85: =K88 -> 0 | O85: =M88 -> 0 | Q85: =O88 -> 0 | S85: =Q88 -> 0
D86: Amortization expense during year | G86: =IF(ISERROR(-G80/('3. Cost_of_Service_Parameters'!G51*2)), 0, -G80/('3. Cost_of_Service_Parameters'!G51*2)) -> 0 | I86: =IF(ISERROR(-(I80/('3. Cost_of_Service_Parameters'!I51*2)+MIN((I79/'3. Cost_of_Service_Parameters'!I51),(I79+I85)))), 0, -(I80/('3. Cost_of_Service_Parameters'!I51*2)+MIN((I79/'3. Cost_of_Service_Parameters'!I51),(I79+I85)))) -> 0 | K86: =IF(ISERROR(-(K80/('3. Cost_of_Service_Parameters'!K51*2)+MIN((K79/'3. Cost_of_Service_Parameters'!K51),(K79+K85)))), 0, -(K80/('3. Cost_of_Service_Parameters'!K51*2)+MIN((K79/'3. Cost_of_Service_Parameters'!K51),(K79+K85)))) -> 0 | M86: =IF(ISERROR(-(M80/('3. Cost_of_Service_Parameters'!M51*2)+MIN((M79/'3. Cost_of_Service_Parameters'!M51),(M79+M85)))), 0,-(M80/('3. Cost_of_Service_Parameters'!M51*2)+MIN((M79/'3. Cost_of_Service_Parameters'!M51),(M79+M85)))) -> 0 | O86: =IF(ISERROR(-(O80/('3. Cost_of_Service_Parameters'!O51*2)+MIN((O79/'3. Cost_of_Service_Parameters'!O51),(O79+O85)))), 0, -(O80/('3. Cost_of_Service_Parameters'!O51*2)+MIN((O79/'3. Cost_of_Service_Parameters'!O51),(O79+O85)))) -> 0 | Q86: =IF(ISERROR(-(Q80/('3. Cost_of_Service_Parameters'!Q51*2)+MIN((Q79/'3. Cost_of_Service_Parameters'!Q51),(Q79+Q85)))), 0, -(Q80/('3. Cost_of_Service_Parameters'!Q51*2)+MIN((Q79/'3. Cost_of_Service_Parameters'!Q51),(Q79+Q85)))) -> 0 | S86: =IF(ISERROR(-(S80/('3. Cost_of_Service_Parameters'!S51*2)+MIN((S79/'3. Cost_of_Service_Parameters'!S51),(S79+S85)))), 0, -(S80/('3. Cost_of_Service_Parameters'!S51*2)+MIN((S79/'3. Cost_of_Service_Parameters'!S51),(S79+S85)))) -> 0
D87: Retirements/Removals (if applicable)
D88: Closing Balance | G88: =G85+G86-G87 -> 0 | I88: =I85+I86-I87 -> 0 | K88: =K85+K86-K87 -> 0 | M88: =M85+M86-M87 -> 0 | O88: =O85+O86-O87 -> 0 | Q88: =Q85+Q86-Q87 -> 0 | S88: =S85+S86-S87 -> 0
C90: Net Book Value
D91: Opening Balance | G91: =G79+G85 -> 0 | I91: =G92 -> 0 | K91: =I92 -> 0 | M91: =K92 -> 0 | O91: =M92 -> 0 | Q91: =O92 -> 0 | S91: =Q92 -> 0
D92: Closing Balance | G92: =G82+G88 -> 0 | I92: =I82+I88 -> 0 | K92: =K82+K88 -> 0 | M92: =M82+M88 -> 0 | O92: =O82+O88 -> 0 | Q92: =Q82+Q88 -> 0 | S92: =S82+S88 -> 0
D93: Average Net Book Value | G93: =AVERAGE(G91:G92) -> 0 | I93: =AVERAGE(I91:I92) -> 0 | K93: =AVERAGE(K91:K92) -> 0 | M93: =AVERAGE(M91:M92) -> 0 | O93: =AVERAGE(O91:O92) -> 0 | Q93: =AVERAGE(Q91:Q92) -> 0 | S93: =AVERAGE(S91:S92) -> 0
B95: Net Fixed Assets - Other Equipment
C97: Gross Book Value
D98: Opening Balance | I98: =G101 -> 0 | K98: =I101 -> 0 | M98: =K101 -> 0 | O98: =M101 -> 0 | Q98: =O101 -> 0 | S98: =Q101 -> 0
D99: Capital Additions during year (from Smart Meter Costs) | G99: ='2. Smart_Meter_Costs'!G189 -> 0 | I99: ='2. Smart_Meter_Costs'!I189 -> 0 | K99: ='2. Smart_Meter_Costs'!K189 -> 0 | M99: ='2. Smart_Meter_Costs'!M189 -> 0 | O99: ='2. Smart_Meter_Costs'!O189 -> 0 | Q99: ='2. Smart_Meter_Costs'!Q189 -> 0 | S99: ='2. Smart_Meter_Costs'!S189 -> 0
D100: Retirements/Removals (if applicable)
D101: Closing Balance | G101: =G98+G99-G100 -> 0 | I101: =I98+I99-I100 -> 0 | K101: =K98+K99-K100 -> 0 | M101: =M98+M99-M100 -> 0 | O101: =O98+O99-O100 -> 0 | Q101: =Q98+Q99-Q100 -> 0 | S101: =S98+S99-S100 -> 0
C103: Accumulated Depreciation
D104: Opening Balance | G104: 0 | I104: =G107 -> 0 | K104: =I107 -> 0 | M104: =K107 -> 0 | O104: =M107 -> 0 | Q104: =O107 -> 0 | S104: =Q107 -> 0
D105: Amortization expense during year | G105: =IF(ISERROR(-G99/('3. Cost_of_Service_Parameters'!G53*2)), 0, -G99/('3. Cost_of_Service_Parameters'!G53*2)) -> 0 | I105: =IF(ISERROR(-(I99/('3. Cost_of_Service_Parameters'!I53*2)+MIN((I98/'3. Cost_of_Service_Parameters'!I53),(I98+I104)))), 0, -(I99/('3. Cost_of_Service_Parameters'!I53*2)+MIN((I98/'3. Cost_of_Service_Parameters'!I53),(I98+I104)))) -> 0 | K105: =IF(ISERROR(-(K99/('3. Cost_of_Service_Parameters'!K53*2)+MIN((K98/'3. Cost_of_Service_Parameters'!K53),(K98+K104)))), 0, -(K99/('3. Cost_of_Service_Parameters'!K53*2)+MIN((K98/'3. Cost_of_Service_Parameters'!K53),(K98+K104)))) -> 0 | M105: =IF(ISERROR(-(M99/('3. Cost_of_Service_Parameters'!M53*2)+MIN((M98/'3. Cost_of_Service_Parameters'!M53),(M98+M104)))), 0,-(M99/('3. Cost_of_Service_Parameters'!M53*2)+MIN((M98/'3. Cost_of_Service_Parameters'!M53),(M98+M104)))) -> 0 | O105: =IF(ISERROR(-(O99/('3. Cost_of_Service_Parameters'!O53*2)+MIN((O98/'3. Cost_of_Service_Parameters'!O53),(O98+O104)))), 0, -(O99/('3. Cost_of_Service_Parameters'!O53*2)+MIN((O98/'3. Cost_of_Service_Parameters'!O53),(O98+O104)))) -> 0 | Q105: =IF(ISERROR(-(Q99/('3. Cost_of_Service_Parameters'!Q53*2)+MIN((Q98/'3. Cost_of_Service_Parameters'!Q53),(Q98+Q104)))), 0, -(Q99/('3. Cost_of_Service_Parameters'!Q53*2)+MIN((Q98/'3. Cost_of_Service_Parameters'!Q53),(Q98+Q104)))) -> 0 | S105: =IF(ISERROR(-(S99/('3. Cost_of_Service_Parameters'!S53*2)+MIN((S98/'3. Cost_of_Service_Parameters'!S53),(S98+S104)))), 0, -(S99/('3. Cost_of_Service_Parameters'!S53*2)+MIN((S98/'3. Cost_of_Service_Parameters'!S53),(S98+S104)))) -> 0
D106: Retirements/Removals (if applicable)
D107: Closing Balance | G107: =G104+G105-G106 -> 0 | I107: =I104+I105-I106 -> 0 | K107: =K104+K105-K106 -> 0 | M107: =M104+M105-M106 -> 0 | O107: =O104+O105-O106 -> 0 | Q107: =Q104+Q105-Q106 -> 0 | S107: =S104+S105-S106 -> 0
C109: Net Book Value
D110: Opening Balance | G110: =G98+G104 -> 0 | I110: =G111 -> 0 | K110: =I111 -> 0 | M110: =K111 -> 0 | O110: =M111 -> 0 | Q110: =O111 -> 0 | S110: =Q111 -> 0
D111: Closing Balance | G111: =G101+G107 -> 0 | I111: =I101+I107 -> 0 | K111: =K101+K107 -> 0 | M111: =M101+M107 -> 0 | O111: =O101+O107 -> 0 | Q111: =Q101+Q107 -> 0 | S111: =S101+S107 -> 0
D112: Average Net Book Value | G112: =AVERAGE(G110:G111) -> 0 | I112: =AVERAGE(I110:I111) -> 0 | K112: =AVERAGE(K110:K111) -> 0 | M112: =AVERAGE(M110:M111) -> 0 | O112: =AVERAGE(O110:O111) -> 0 | Q112: =AVERAGE(Q110:Q111) -> 0 | S112: =AVERAGE(S110:S111) -> 0

Sheet 5. SM_Rev_Reqt
G18: 2006 | I18: 2007 | K18: 2008 | M18: 2009 | O18: 2010 | Q18: 2011 | S18: 2012 and Later
B19: Average Net Fixed Asset Values (from Sheet 4)
C20: Smart Meters | G20: ='4. SM_Assets_and_Rate_Base'!G36 -> 0 | I20: ='4. SM_Assets_and_Rate_Base'!I36 -> 4925.166667 | K20: ='4. SM_Assets_and_Rate_Base'!K36 -> 11703.55 | M20: ='4. SM_Assets_and_Rate_Base'!M36 -> 112825.3833 | O20: ='4. SM_Assets_and_Rate_Base'!O36 -> 351951.7833 | Q20: ='4. SM_Assets_and_Rate_Base'!Q36 -> 571952.1667 | S20: ='4. SM_Assets_and_Rate_Base'!S36 -> 629496.2333
C21: Computer Hardware | G21: ='4. SM_Assets_and_Rate_Base'!G55 -> 0 | I21: ='4. SM_Assets_and_Rate_Base'!I55 -> 0 | K21: ='4. SM_Assets_and_Rate_Base'!K55 -> 0 | M21: ='4. SM_Assets_and_Rate_Base'!M55 -> 214.65 | O21: ='4. SM_Assets_and_Rate_Base'!O55 -> 2490.3 | Q21: ='4. SM_Assets_and_Rate_Base'!Q55 -> 4298.25 | S21: ='4. SM_Assets_and_Rate_Base'!S55 -> 3470.4
C22: Computer Software | G22: ='4. SM_Assets_and_Rate_Base'!G74 -> 0 | I22: ='4. SM_Assets_and_Rate_Base'!I74 -> 0 | K22: ='4. SM_Assets_and_Rate_Base'!K74 -> 0 | M22: ='4. SM_Assets_and_Rate_Base'!M74 -> 233.1 | O22: ='4. SM_Assets_and_Rate_Base'!O74 -> 2072.2 | Q22: ='4. SM_Assets_and_Rate_Base'!Q74 -> 4526.55 | S22: ='4. SM_Assets_and_Rate_Base'!S74 -> 4672.8
C23: Tools & Equipment | G23: ='4. SM_Assets_and_Rate_Base'!G93 -> 0 | I23: ='4. SM_Assets_and_Rate_Base'!I93 -> 0 | K23: ='4. SM_Assets_and_Rate_Base'!K93 -> 0 | M23: ='4. SM_Assets_and_Rate_Base'!M93 -> 0 | O23: ='4. SM_Assets_and_Rate_Base'!O93 -> 0 | Q23: ='4. SM_Assets_and_Rate_Base'!Q93 -> 0 | S23: ='4. SM_Assets_and_Rate_Base'!S93 -> 0
C24: Other Equipment | G24: ='4. SM_Assets_and_Rate_Base'!G112 -> 0 | I24: ='4. SM_Assets_and_Rate_Base'!I112 -> 0 | K24: ='4. SM_Assets_and_Rate_Base'!K112 -> 0 | M24: ='4. SM_Assets_and_Rate_Base'!M112 -> 0 | O24: ='4. SM_Assets_and_Rate_Base'!O112 -> 0 | Q24: ='4. SM_Assets_and_Rate_Base'!Q112 -> 0 | S24: ='4. SM_Assets_and_Rate_Base'!S112 -> 0
C25: Total Net Fixed Assets | G25: =SUM(G20:G24) -> 0 | I25: =SUM(I20:I24) -> 4925.166667 | K25: =SUM(K20:K24) -> 11703.55 | M25: =SUM(M20:M24) -> 113273.1333 | O25: =SUM(O20:O24) -> 356514.2833 | Q25: =SUM(Q20:Q24) -> 580776.9667 | S25: =SUM(S20:S24) -> 637639.4333
B27: Working Capital
C28: Operating Expenses (from Sheet 2) | G28: ='2. Smart_Meter_Costs'!G174 -> 0 | I28: ='2. Smart_Meter_Costs'!I174 -> 0 | K28: ='2. Smart_Meter_Costs'!K174 -> 0 | M28: ='2. Smart_Meter_Costs'!M174 -> 17394 | O28: ='2. Smart_Meter_Costs'!O174 -> 25964 | Q28: ='2. Smart_Meter_Costs'!Q174 -> 38676 | S28: ='2. Smart_Meter_Costs'!S174 -> 47954
C29: Working Capital Factor (from Sheet 3) | G29: ='3. Cost_of_Service_Parameters'!G36 -> 0.15 | I29: ='3. Cost_of_Service_Parameters'!I36 -> 0.15 | K29: ='3. Cost_of_Service_Parameters'!K36 -> 0.15 | M29: ='3. Cost_of_Service_Parameters'!M36 -> 0.15 | O29: ='3. Cost_of_Service_Parameters'!O36 -> 0.15 | Q29: ='3. Cost_of_Service_Parameters'!Q36 -> 0.15 | S29: ='3. Cost_of_Service_Parameters'!S36 -> 0.15
C30: Working Capital Allowance | G30: =G28*G29 -> 0 | I30: =I28*I29 -> 0 | K30: =K28*K29 -> 0 | M30: =M28*M29 -> 2609.1 | O30: =O28*O29 -> 3894.6 | Q30: =Q28*Q29 -> 5801.4 | S30: =S28*S29 -> 7193.1
B32: Incremental Smart Meter Rate Base | G32: =G25+G30 -> 0 | I32: =I25+I30 -> 4925.166667 | K32: =K25+K30 -> 11703.55 | M32: =M25+M30 -> 115882.2333 | O32: =O25+O30 -> 360408.8833 | Q32: =Q25+Q30 -> 586578.3667 | S32: =S25+S30 -> 644832.5333
B34: Return on Rate Base
C35: Capital Structure
C36: Deemed Short Term Debt | G36: =G$32*'3. Cost_of_Service_Parameters'!G22 -> 0 | I36: =I$32*'3. Cost_of_Service_Parameters'!I22 -> 0 | K36: =K$32*'3. Cost_of_Service_Parameters'!K22 -> 0 | M36: =M$32*'3. Cost_of_Service_Parameters'!M22 -> 0 | O36: =O$32*'3. Cost_of_Service_Parameters'!O22 -> 14416.35533 | Q36: =Q$32*'3. Cost_of_Service_Parameters'!Q22 -> 23463.13467 | S36: =S$32*'3. Cost_of_Service_Parameters'!S22 -> 25793.30133
C37: Deemed Long Term Debt | G37: =G$32*'3. Cost_of_Service_Parameters'!G23 -> 0 | I37: =I$32*'3. Cost_of_Service_Parameters'!I23 -> 2462.583333 | K37: =K$32*'3. Cost_of_Service_Parameters'!K23 -> 6237.99215 | M37: =M$32*'3. Cost_of_Service_Parameters'!M23 -> 65705.2263 | O37: =O$32*'3. Cost_of_Service_Parameters'!O23 -> 201828.9747 | Q37: =Q$32*'3. Cost_of_Service_Parameters'!Q23 -> 328483.8853 | S37: =S$32*'3. Cost_of_Service_Parameters'!S23 -> 361106.2187
C38: Equity | G38: =G$32*'3. Cost_of_Service_Parameters'!G24 -> 0 | I38: =I$32*'3. Cost_of_Service_Parameters'!I24 -> 2462.583333 | K38: =K$32*'3. Cost_of_Service_Parameters'!K24 -> 5465.55785 | M38: =M$32*'3. Cost_of_Service_Parameters'!M24 -> 50177.00703 | O38: =O$32*'3. Cost_of_Service_Parameters'!O24 -> 144163.5533 | Q38: =Q$32*'3. Cost_of_Service_Parameters'!Q24 -> 234631.3467 | S38: =S$32*'3. Cost_of_Service_Parameters'!S24 -> 257933.0133
C39: Preferred Shares | G39: =G$32*'3. Cost_of_Service_Parameters'!G25 -> 0 | I39: =I$32*'3. Cost_of_Service_Parameters'!I25 -> 0 | K39: =K$32*'3. Cost_of_Service_Parameters'!K25 -> 0 | M39: =M$32*'3. Cost_of_Service_Parameters'!M25 -> 0 | O39: =O$32*'3. Cost_of_Service_Parameters'!O25 -> 0 | Q39: =Q$32*'3. Cost_of_Service_Parameters'!Q25 -> 0 | S39: =S$32*'3. Cost_of_Service_Parameters'!S25 -> 0
C40: Total Capitalization | G40: =SUM(G36:G39) -> 0 | I40: =SUM(I36:I39) -> 4925.166667 | K40: =SUM(K36:K39) -> 11703.55 | M40: =SUM(M36:M39) -> 115882.2333 | O40: =SUM(O36:O39) -> 360408.8833 | Q40: =SUM(Q36:Q39) -> 586578.3667 | S40: =SUM(S36:S39) -> 644832.5333
G41: =IF(G40=G32,"","Error") ->  | I41: =IF(I40=I32,"","Error") ->  | K41: =IF(K40=K32,"","Error") ->  | M41: =IF(M40=M32,"","Error") ->  | O41: =IF(O40=O32,"","Error") ->  | Q41: =IF(Q40=Q32,"","Error") ->  | S41: =IF(S40=S32,"","Error") -> 
C42: Return on
C43: Deemed Short Term Debt | G43: =G36*'3. Cost_of_Service_Parameters'!G29 -> 0 | I43: =I36*'3. Cost_of_Service_Parameters'!I29 -> 0 | K43: =K36*'3. Cost_of_Service_Parameters'!K29 -> 0 | M43: =M36*'3. Cost_of_Service_Parameters'!M29 -> 0 | O43: =O36*'3. Cost_of_Service_Parameters'!O29 -> 298.4185554 | Q43: =Q36*'3. Cost_of_Service_Parameters'!Q29 -> 485.6868876 | S43: =S36*'3. Cost_of_Service_Parameters'!S29 -> 533.9213376
C44: Deemed Long Term Debt | G44: =G37*'3. Cost_of_Service_Parameters'!G30 -> 0 | I44: =I37*'3. Cost_of_Service_Parameters'!I30 -> 148.9862917 | K44: =K37*'3. Cost_of_Service_Parameters'!K30 -> 377.3985251 | M44: =M37*'3. Cost_of_Service_Parameters'!M30 -> 3975.166191 | O44: =O37*'3. Cost_of_Service_Parameters'!O30 -> 10353.8264 | Q44: =Q37*'3. Cost_of_Service_Parameters'!Q30 -> 16851.22332 | S44: =S37*'3. Cost_of_Service_Parameters'!S30 -> 18524.74902
C45: Equity | G45: =G38*'3. Cost_of_Service_Parameters'!G31 -> 0 | I45: =I38*'3. Cost_of_Service_Parameters'!I31 -> 221.6325 | K45: =K38*'3. Cost_of_Service_Parameters'!K31 -> 491.9002065 | M45: =M38*'3. Cost_of_Service_Parameters'!M31 -> 4515.930633 | O45: =O38*'3. Cost_of_Service_Parameters'!O31 -> 14200.11 | Q45: =Q38*'3. Cost_of_Service_Parameters'!Q31 -> 23111.18765 | S45: =S38*'3. Cost_of_Service_Parameters'!S31 -> 25406.40181
C46: Preferred Shares | G46: =G39*'3. Cost_of_Service_Parameters'!G32 -> 0 | I46: =I39*'3. Cost_of_Service_Parameters'!I32 -> 0 | K46: =K39*'3. Cost_of_Service_Parameters'!K32 -> 0 | M46: =M39*'3. Cost_of_Service_Parameters'!M32 -> 0 | O46: =O39*'3. Cost_of_Service_Parameters'!O32 -> 0 | Q46: =Q39*'3. Cost_of_Service_Parameters'!Q32 -> 0 | S46: =S39*'3. Cost_of_Service_Parameters'!S32 -> 0
C47: Total Return on Capital | G47: =SUM(G43:G46) -> 0 | I47: =SUM(I43:I46) -> 370.6187917 | K47: =SUM(K43:K46) -> 869.2987316 | M47: =SUM(M43:M46) -> 8491.096824 | O47: =SUM(O43:O46) -> 24852.35496 | Q47: =SUM(Q43:Q46) -> 40448.09785 | S47: =SUM(S43:S46) -> 44465.07217
B50: Operating Expenses | G50: =G28 -> 0 | I50: =I28 -> 0 | K50: =K28 -> 0 | M50: =M28 -> 17394 | O50: =O28 -> 25964 | Q50: =Q28 -> 38676 | S50: =S28 -> 47954
B52: Amortization Expenses (from Sheet 4)
C53: Smart Meters | G53: =-'4. SM_Assets_and_Rate_Base'!G29 -> 0 | I53: =-'4. SM_Assets_and_Rate_Base'!I29 -> 339.6666667 | K53: =-'4. SM_Assets_and_Rate_Base'!K29 -> 830.5666667 | M53: =-'4. SM_Assets_and_Rate_Base'!M29 -> 7861.766667 | O53: =-'4. SM_Assets_and_Rate_Base'!O29 -> 24895.43333 | Q53: =-'4. SM_Assets_and_Rate_Base'!Q29 -> 41784.8 | S53: =-'4. SM_Assets_and_Rate_Base'!S29 -> 48635.06667
C54: Computer Hardware | G54: =-'4. SM_Assets_and_Rate_Base'!G48 -> 0 | I54: =-'4. SM_Assets_and_Rate_Base'!I48 -> 0 | K54: =-'4. SM_Assets_and_Rate_Base'!K48 -> 0 | M54: =-'4. SM_Assets_and_Rate_Base'!M48 -> 47.7 | O54: =-'4. SM_Assets_and_Rate_Base'!O48 -> 564 | Q54: =-'4. SM_Assets_and_Rate_Base'!Q48 -> 1091.1 | S54: =-'4. SM_Assets_and_Rate_Base'!S48 -> 1149.6
C55: Computer Software | G55: =-'4. SM_Assets_and_Rate_Base'!G67 -> 0 | I55: =-'4. SM_Assets_and_Rate_Base'!I67 -> 0 | K55: =-'4. SM_Assets_and_Rate_Base'!K67 -> 0 | M55: =-'4. SM_Assets_and_Rate_Base'!M67 -> 51.8 | O55: =-'4. SM_Assets_and_Rate_Base'!O67 -> 472 | Q55: =-'4. SM_Assets_and_Rate_Base'!Q67 -> 1122.3 | S55: =-'4. SM_Assets_and_Rate_Base'!S67 -> 1404.2
C56: Tools & Equipment | G56: =-'4. SM_Assets_and_Rate_Base'!G86 -> 0 | I56: =-'4. SM_Assets_and_Rate_Base'!I86 -> 0 | K56: =-'4. SM_Assets_and_Rate_Base'!K86 -> 0 | M56: =-'4. SM_Assets_and_Rate_Base'!M86 -> 0 | O56: =-'4. SM_Assets_and_Rate_Base'!O86 -> 0 | Q56: =-'4. SM_Assets_and_Rate_Base'!Q86 -> 0 | S56: =-'4. SM_Assets_and_Rate_Base'!S86 -> 0
C57: Other Equipment | G57: =-'4. SM_Assets_and_Rate_Base'!G105 -> 0 | I57: =-'4. SM_Assets_and_Rate_Base'!I105 -> 0 | K57: =-'4. SM_Assets_and_Rate_Base'!K105 -> 0 | M57: =-'4. SM_Assets_and_Rate_Base'!M105 -> 0 | O57: =-'4. SM_Assets_and_Rate_Base'!O105 -> 0 | Q57: =-'4. SM_Assets_and_Rate_Base'!Q105 -> 0 | S57: =-'4. SM_Assets_and_Rate_Base'!S105 -> 0
C58: Total Amortization Expense in Year | G58: =SUM(G53:G57) -> 0 | I58: =SUM(I53:I57) -> 339.6666667 | K58: =SUM(K53:K57) -> 830.5666667 | M58: =SUM(M53:M57) -> 7961.266667 | O58: =SUM(O53:O57) -> 25931.43333 | Q58: =SUM(Q53:Q57) -> 43998.2 | S58: =SUM(S53:S57) -> 51188.86667
B60: Incremental Revenue Requirement before Taxes/PILs | G60: =G47+G50+G58 -> 0 | I60: =I47+I50+I58 -> 710.2854583 | K60: =K47+K50+K58 -> 1699.865398 | M60: =M47+M50+M58 -> 33846.36349 | O60: =O47+O50+O58 -> 76747.78829 | Q60: =Q47+Q50+Q58 -> 123122.2979 | S60: =S47+S50+S58 -> 143607.9388
B62: Calculation of Taxable Income
C63: Incremental Operating Expenses | G63: =G50 -> 0 | I63: =I50 -> 0 | K63: =K50 -> 0 | M63: =M50 -> 17394 | O63: =O50 -> 25964 | Q63: =Q50 -> 38676 | S63: =S50 -> 47954
C64: Amortization Expense | G64: =G58 -> 0 | I64: =I58 -> 339.6666667 | K64: =K58 -> 830.5666667 | M64: =M58 -> 7961.266667 | O64: =O58 -> 25931.43333 | Q64: =Q58 -> 43998.2 | S64: =S58 -> 51188.86667
C65: Interest Expense | G65: =G43+G44 -> 0 | I65: =I43+I44 -> 148.9862917 | K65: =K43+K44 -> 377.3985251 | M65: =M43+M44 -> 3975.166191 | O65: =O43+O44 -> 10652.24496 | Q65: =Q43+Q44 -> 17336.91021 | S65: =S43+S44 -> 19058.67036
C66: Net Income for Taxes/PILs | G66: =G60-SUM(G63:G65) -> 0 | I66: =I60-SUM(I63:I65) -> 221.6325 | K66: =K60-SUM(K63:K65) -> 491.9002065 | M66: =M60-SUM(M63:M65) -> 4515.930633 | O66: =O60-SUM(O63:O65) -> 14200.11 | Q66: =Q60-SUM(Q63:Q65) -> 23111.18765 | S66: =S60-SUM(S63:S65) -> 25406.40181
B68: Grossed-up Taxes/PILs (from Sheet 7) | G68: ='7_Taxes_PILs'!C59 -> 0 | I68: ='7_Taxes_PILs'!E59 -> 109.0701677 | K68: ='7_Taxes_PILs'!G59 -> 211.0475107 | M68: ='7_Taxes_PILs'!I59 -> 1787.066151 | O68: ='7_Taxes_PILs'!K59 -> 3103.357119 | Q68: ='7_Taxes_PILs'!M59 -> 6656.750913 | S68: ='7_Taxes_PILs'!O59 -> 7322.604295
B70: Revenue Requirement, including Grossed-up Taxes/PILs | G70: =G60+G68 -> 0 | I70: =I60+I68 -> 819.355626 | K70: =K60+K68 -> 1910.912909 | M70: =M60+M68 -> 35633.42964 | O70: =O60+O68 -> 79851.14541 | Q70: =Q60+Q68 -> 129779.0488 | S70: =S60+S68 -> 150930.5431

Sheet 6. UCC_Calculation
A18: For PILs Calculation
A20: UCC - Smart Meters | B20: ='2. Smart_Meter_Costs'!G18 -> 2006 | D20: ='2. Smart_Meter_Costs'!I18 -> 2007 | F20: ='2. Smart_Meter_Costs'!K18 -> 2008 | H20: ='2. Smart_Meter_Costs'!M18 -> 2009 | J20: ='2. Smart_Meter_Costs'!O18 -> 2010 | L20: ='2. Smart_Meter_Costs'!Q18 -> 2011 | N20: ='2. Smart_Meter_Costs'!S18 -> 2012 and later
B21: ='2. Smart_Meter_Costs'!G19 -> Audited Actual | D21: ='2. Smart_Meter_Costs'!I19 -> Audited Actual | F21: ='2. Smart_Meter_Costs'!K19 -> Audited Actual | H21: ='2. Smart_Meter_Costs'!M19 -> Audited Actual | J21: ='2. Smart_Meter_Costs'!O19 -> Audited Actual | L21: ='2. Smart_Meter_Costs'!Q19 -> Audited Actual | N21: ='2. Smart_Meter_Costs'!S19 -> Forecast
A23: Opening UCC | B23: 0 | D23: =B26-B31 -> 0 | F23: =D26-D31 -> 9782.4 | H23: =F26-F31 -> 13355.328 | J23: =H26-H31 -> 210429.9418 | L23: =J26-J31 -> 486022.1064 | N23: =L26-L31 -> 641127.5379
A24: Capital Additions | B24: ='4. SM_Assets_and_Rate_Base'!G23 -> 0 | D24: ='4. SM_Assets_and_Rate_Base'!I23 -> 10190 | F24: ='4. SM_Assets_and_Rate_Base'!K23 -> 4537 | H24: ='4. SM_Assets_and_Rate_Base'!M23 -> 206399 | J24: ='4. SM_Assets_and_Rate_Base'!O23 -> 304611 | L24: ='4. SM_Assets_and_Rate_Base'!Q23 -> 202070 | N24: ='4. SM_Assets_and_Rate_Base'!S23 -> 3438
A25: Retirements/Removals (if applicable)
A26: UCC Before Half Year Rule | B26: =SUM(B23:B24)-B25 -> 0 | D26: =SUM(D23:D24)-D25 -> 10190 | F26: =SUM(F23:F24)-F25 -> 14319.4 | H26: =SUM(H23:H24)-H25 -> 219754.328 | J26: =SUM(J23:J24)-J25 -> 515040.9418 | L26: =SUM(L23:L24)-L25 -> 688092.1064 | N26: =SUM(N23:N24)-N25 -> 644565.5379
A27: Half Year Rule (1/2 Additions - Disposals) | B27: =IF(((B24-B25)/2)<0, 0, (B24-B25)/2) -> 0 | D27: =IF(((D24-D25)/2)<0, 0, (D24-D25)/2) -> 5095 | F27: =IF(((F24-F25)/2)<0, 0, (F24-F25)/2) -> 2268.5 | H27: =IF(((H24-H25)/2)<0, 0, (H24-H25)/2) -> 103199.5 | J27: =IF(((J24-J25)/2)<0, 0, (J24-J25)/2) -> 152305.5 | L27: =IF(((L24-L25)/2)<0, 0, (L24-L25)/2) -> 101035 | N27: =IF(((N24-N25)/2)<0, 0, (N24-N25)/2) -> 1719
A28: Reduced UCC | B28: =B27+B23 -> 0 | D28: =D27+D23 -> 5095 | F28: =F27+F23 -> 12050.9 | H28: =H27+H23 -> 116554.828 | J28: =J27+J23 -> 362735.4418 | L28: =L27+L23 -> 587057.1064 | N28: =N27+N23 -> 642846.5379
A29: CCA Rate Class | B29: ='3. Cost_of_Service_Parameters'!G57 -> 47 | D29: ='3. Cost_of_Service_Parameters'!I57 -> 47 | F29: ='3. Cost_of_Service_Parameters'!K57 -> 47 | H29: ='3. Cost_of_Service_Parameters'!M57 -> 47 | J29: ='3. Cost_of_Service_Parameters'!O57 -> 47 | L29: ='3. Cost_of_Service_Parameters'!Q57 -> 47 | N29: ='3. Cost_of_Service_Parameters'!S57 -> 47
A30: CCA Rate | B30: ='3. Cost_of_Service_Parameters'!G58 -> 0.08 | D30: ='3. Cost_of_Service_Parameters'!I58 -> 0.08 | F30: ='3. Cost_of_Service_Parameters'!K58 -> 0.08 | H30: ='3. Cost_of_Service_Parameters'!M58 -> 0.08 | J30: ='3. Cost_of_Service_Parameters'!O58 -> 0.08 | L30: ='3. Cost_of_Service_Parameters'!Q58 -> 0.08 | N30: ='3. Cost_of_Service_Parameters'!S58 -> 0.08
A31: CCA | B31: =B28*B30 -> 0 | D31: =D28*D30 -> 407.6 | F31: =F28*F30 -> 964.072 | H31: =H28*H30 -> 9324.38624 | J31: =J28*J30 -> 29018.83534 | L31: =L28*L30 -> 46964.56851 | N31: =N28*N30 -> 51427.72303
A32: Closing UCC | B32: =IF((B26-B31)<0, 0, B26-B31) -> 0 | D32: =IF((D26-D31)<0, 0, D26-D31) -> 9782.4 | F32: =IF((F26-F31)<0, 0, F26-F31) -> 13355.328 | H32: =IF((H26-H31)<0, 0, H26-H31) -> 210429.9418 | J32: =IF((J26-J31)<0, 0, J26-J31) -> 486022.1064 | L32: =IF((L26-L31)<0, 0, L26-L31) -> 641127.5379 | N32: =IF((N26-N31)<0, 0, N26-N31) -> 593137.8149
A34: UCC - Computer Equipment | B34: =B20 -> 2006 | D34: 2007 | F34: 2008 | H34: 2009 | J34: 2010 | L34: 2011 | N34: =N20 -> 2012 and later
B35: Audited Actual | D35: Audited Actual | F35: Audited Actual | H35: Audited Actual | J35: Audited Actual | L35: Audited Actual | N35: =N21 -> Forecast
A37: Opening UCC | B37: 0 | D37: =B41-B46 -> 0 | F37: =D41-D46 -> 0 | H37: =F41-F46 -> 0 | J37: =H41-H46 -> 497.5 | L37: =J41-J46 -> 4185 | N37: =L41-L46 -> 4351.15
A38: Capital Additions Computer Hardware | B38: ='2. Smart_Meter_Costs'!G183 -> 0 | D38: ='2. Smart_Meter_Costs'!I183 -> 0 | F38: ='2. Smart_Meter_Costs'!K183 -> 0 | H38: ='2. Smart_Meter_Costs'!M183 -> 477 | J38: ='2. Smart_Meter_Costs'!O183 -> 4686 | L38: ='2. Smart_Meter_Costs'!Q183 -> 585 | N38: ='2. Smart_Meter_Costs'!S183 -> 0
A39: Capital Additions Computer Software | B39: ='2. Smart_Meter_Costs'!G185 -> 0 | D39: ='2. Smart_Meter_Costs'!I185 -> 0 | F39: ='2. Smart_Meter_Costs'!K185 -> 0 | H39: ='2. Smart_Meter_Costs'!M185 -> 518 | J39: ='2. Smart_Meter_Costs'!O185 -> 3684 | L39: ='2. Smart_Meter_Costs'!Q185 -> 2819 | N39: ='2. Smart_Meter_Costs'!S185 -> 0
A40: Retirements/Removals (if applicable)
A41: UCC Before Half Year Rule | B41: =SUM(B37:B39)-B40 -> 0 | D41: =SUM(D37:D39)-D40 -> 0 | F41: =SUM(F37:F39)-F40 -> 0 | H41: =SUM(H37:H39)-H40 -> 995 | J41: =SUM(J37:J39)-J40 -> 8867.5 | L41: =SUM(L37:L39)-L40 -> 7589 | N41: =SUM(N37:N39)-N40 -> 4351.15
A42: Half Year Rule (1/2 Additions - Disposals) | B42: =IF((SUM(B38:B39)/2)<0, 0, SUM(B38:B39)/2) -> 0 | D42: =IF((SUM(D38:D39)/2)<0, 0, SUM(D38:D39)/2) -> 0 | F42: =IF((SUM(F38:F39)/2)<0, 0, SUM(F38:F39)/2) -> 0 | H42: =IF((SUM(H38:H39)/2)<0, 0, SUM(H38:H39)/2) -> 497.5 | J42: =IF((SUM(J38:J39)/2)<0, 0, SUM(J38:J39)/2) -> 4185 | L42: =IF((SUM(L38:L39)/2)<0, 0, SUM(L38:L39)/2) -> 1702 | N42: =IF((SUM(N38:N39)/2)<0, 0, SUM(N38:N39)/2) -> 0
A43: Reduced UCC | B43: =B42+B37 -> 0 | D43: =D42+D37 -> 0 | F43: =F42+F37 -> 0 | H43: =H42+H37 -> 497.5 | J43: =J42+J37 -> 4682.5 | L43: =L42+L37 -> 5887 | N43: =N42+N37 -> 4351.15
A44: CCA Rate Class | B44: ='3. Cost_of_Service_Parameters'!G60 -> 45 | D44: ='3. Cost_of_Service_Parameters'!I60 -> 45 | F44: ='3. Cost_of_Service_Parameters'!K60 -> 50 | H44: ='3. Cost_of_Service_Parameters'!M60 -> 52 | J44: ='3. Cost_of_Service_Parameters'!O60 -> 52 | L44: ='3. Cost_of_Service_Parameters'!Q60 -> 50 | N44: ='3. Cost_of_Service_Parameters'!S60 -> 50
A45: CCA Rate | B45: ='3. Cost_of_Service_Parameters'!G61 -> 0.45 | D45: ='3. Cost_of_Service_Parameters'!I61 -> 0.45 | F45: ='3. Cost_of_Service_Parameters'!K61 -> 0.55 | H45: ='3. Cost_of_Service_Parameters'!M61 -> 1 | J45: ='3. Cost_of_Service_Parameters'!O61 -> 1 | L45: ='3. Cost_of_Service_Parameters'!Q61 -> 0.55 | N45: ='3. Cost_of_Service_Parameters'!S61 -> 0.55
A46: CCA | B46: =B45*B43 -> 0 | D46: =D45*D43 -> 0 | F46: =F45*F43 -> 0 | H46: =H45*H43 -> 497.5 | J46: =J45*J43 -> 4682.5 | L46: =L45*L43 -> 3237.85 | N46: =N45*N43 -> 2393.1325
A47: Closing UCC | B47: =IF((B41-B46)<0, 0, B41-B46) -> 0 | D47: =IF((D41-D46)<0, 0, D41-D46) -> 0 | F47: =IF((F41-F46)<0, 0, F41-F46) -> 0 | H47: =IF((H41-H46)<0, 0, H41-H46) -> 497.5 | J47: =IF((J41-J46)<0, 0, J41-J46) -> 4185 | L47: =IF((L41-L46)<0, 0, L41-L46) -> 4351.15 | N47: =IF((N41-N46)<0, 0, N41-N46) -> 1958.0175
A49: UCC - General Equipment | B49: =B34 -> 2006 | D49: 2007 | F49: 2008 | H49: 2009 | J49: 2010 | L49: 2011 | N49: =N34 -> 2012 and later
B50: Audited Actual | D50: Audited Actual | F50: Audited Actual | H50: Audited Actual | J50: Audited Actual | L50: Audited Actual | N50: =N35 -> Forecast
A52: Opening UCC | B52: 0 | D52: =B56-B61 -> 0 | F52: =D56-D61 -> 0 | H52: =F56-F61 -> 0 | J52: =H56-H61 -> 0 | L52: =J56-J61 -> 0 | N52: =L56-L61 -> 0
A53: Capital Additions Tools & Equipment | B53: ='2. Smart_Meter_Costs'!G187 -> 0 | D53: ='2. Smart_Meter_Costs'!I187 -> 0 | F53: ='2. Smart_Meter_Costs'!K187 -> 0 | H53: ='2. Smart_Meter_Costs'!M187 -> 0 | J53: ='2. Smart_Meter_Costs'!O187 -> 0 | L53: ='2. Smart_Meter_Costs'!Q187 -> 0 | N53: ='2. Smart_Meter_Costs'!S187 -> 0
A54: Capital Additions Other Equipment | B54: ='2. Smart_Meter_Costs'!G189 -> 0 | D54: ='2. Smart_Meter_Costs'!I189 -> 0 | F54: ='2. Smart_Meter_Costs'!K189 -> 0 | H54: ='2. Smart_Meter_Costs'!M189 -> 0 | J54: ='2. Smart_Meter_Costs'!O189 -> 0 | L54: ='2. Smart_Meter_Costs'!Q189 -> 0 | N54: ='2. Smart_Meter_Costs'!S189 -> 0
A55: Retirements/Removals (if applicable)
A56: UCC Before Half Year Rule | B56: =SUM(B52:B54)-B55 -> 0 | D56: =SUM(D52:D54)-D55 -> 0 | F56: =SUM(F52:F54)-F55 -> 0 | H56: =SUM(H52:H54)-H55 -> 0 | J56: =SUM(J52:J54)-J55 -> 0 | L56: =SUM(L52:L54)-L55 -> 0 | N56: =SUM(N52:N54)-N55 -> 0
A57: Half Year Rule (1/2 Additions - Disposals) | B57: =IF(((SUM(B53:B54)-B55)/2)<0, 0, (SUM(B53:B54)-B55)/2) -> 0 | D57: =IF(((SUM(D53:D54)-D55)/2)<0, 0, (SUM(D53:D54)-D55)/2) -> 0 | F57: =IF(((SUM(F53:F54)-F55)/2)<0, 0, (SUM(F53:F54)-F55)/2) -> 0 | H57: =IF(((SUM(H53:H54)-H55)/2)<0, 0, (SUM(H53:H54)-H55)/2) -> 0 | J57: =IF(((SUM(J53:J54)-J55)/2)<0, 0, (SUM(J53:J54)-J55)/2) -> 0 | L57: =IF(((SUM(L53:L54)-L55)/2)<0, 0, (SUM(L53:L54)-L55)/2) -> 0 | N57: =IF(((SUM(N53:N54)-N55)/2)<0, 0, (SUM(N53:N54)-N55)/2) -> 0
A58: Reduced UCC | B58: =B57+B52 -> 0 | D58: =D57+D52 -> 0 | F58: =F57+F52 -> 0 | H58: =H57+H52 -> 0 | J58: =J57+J52 -> 0 | L58: =L57+L52 -> 0 | N58: =N57+N52 -> 0
A59: CCA Rate Class | B59: ='3. Cost_of_Service_Parameters'!G63 -> 8 | D59: ='3. Cost_of_Service_Parameters'!I63 -> 8 | F59: ='3. Cost_of_Service_Parameters'!K63 -> 8 | H59: ='3. Cost_of_Service_Parameters'!M63 -> 8 | J59: ='3. Cost_of_Service_Parameters'!O63 -> 8 | L59: ='3. Cost_of_Service_Parameters'!Q63 -> 8 | N59: ='3. Cost_of_Service_Parameters'!S63 -> 8
A60: CCA Rate | B60: ='3. Cost_of_Service_Parameters'!G64 -> 0.2 | D60: ='3. Cost_of_Service_Parameters'!I64 -> 0.2 | F60: ='3. Cost_of_Service_Parameters'!K64 -> 0.2 | H60: ='3. Cost_of_Service_Parameters'!M64 -> 0.2 | J60: ='3. Cost_of_Service_Parameters'!O64 -> 0.2 | L60: ='3. Cost_of_Service_Parameters'!Q64 -> 0.2 | N60: ='3. Cost_of_Service_Parameters'!S64 -> 0.2
A61: CCA | B61: =B60*B58 -> 0 | D61: =D60*D58 -> 0 | F61: =F60*F58 -> 0 | H61: =H60*H58 -> 0 | J61: =J60*J58 -> 0 | L61: =L60*L58 -> 0 | N61: =N60*N58 -> 0
A62: Closing UCC | B62: =IF((B56-B61)<0, 0, B56-B61) -> 0 | D62: =IF((D56-D61)<0, 0, D56-D61) -> 0 | F62: =IF((F56-F61)<0, 0, F56-F61) -> 0 | H62: =IF((H56-H61)<0, 0, H56-H61) -> 0 | J62: =IF((J56-J61)<0, 0, J56-J61) -> 0 | L62: =IF((L56-L61)<0, 0, L56-L61) -> 0 | N62: =IF((N56-N61)<0, 0, N56-N61) -> 0
A64: UCC - Applications Software | B64: =B49 -> 2006 | D64: =D49 -> 2007 | F64: =F49 -> 2008 | H64: =H49 -> 2009 | J64: =J49 -> 2010 | L64: =L49 -> 2011 | N64: =N49 -> 2012 and later
B65: =B50 -> Audited Actual | D65: =D50 -> Audited Actual | F65: =F50 -> Audited Actual | H65: =H50 -> Audited Actual | J65: =J50 -> Audited Actual | L65: =L50 -> Audited Actual | N65: =N50 -> Forecast
A67: Opening UCC | B67: 0 | D67: =B70-B75 -> 0 | F67: =D70-D75 -> 0 | H67: =F70-F75 -> 0 | J67: =H70-H75 -> 0 | L67: =J70-J75 -> 0 | N67: =L70-L75 -> 0
A68: Capital Additions Applications Software | B68: ='2. Smart_Meter_Costs'!G191 -> 0 | D68: ='2. Smart_Meter_Costs'!I191 -> 0 | F68: ='2. Smart_Meter_Costs'!K191 -> 0 | H68: ='2. Smart_Meter_Costs'!M191 -> 0 | J68: ='2. Smart_Meter_Costs'!O191 -> 0 | L68: ='2. Smart_Meter_Costs'!Q191 -> 0 | N68: ='2. Smart_Meter_Costs'!S191 -> 0
A69: Retirements/Removals (if applicable)
A70: UCC Before Half Year Rule | B70: =SUM(B67:B68)-B69 -> 0 | D70: =SUM(D67:D68)-D69 -> 0 | F70: =SUM(F67:F68)-F69 -> 0 | H70: =SUM(H67:H68)-H69 -> 0 | J70: =SUM(J67:J68)-J69 -> 0 | L70: =SUM(L67:L68)-L69 -> 0 | N70: =SUM(N67:N68)-N69 -> 0
A71: Half Year Rule (1/2 Additions - Disposals) | B71: =IF(((SUM(B68:B68)-B69)/2)<0, 0, (SUM(B68:B68)-B69)/2) -> 0 | D71: =IF(((SUM(D68:D68)-D69)/2)<0, 0, (SUM(D68:D68)-D69)/2) -> 0 | F71: =IF(((SUM(F68:F68)-F69)/2)<0, 0, (SUM(F68:F68)-F69)/2) -> 0 | H71: =IF(((SUM(H68:H68)-H69)/2)<0, 0, (SUM(H68:H68)-H69)/2) -> 0 | J71: =IF(((SUM(J68:J68)-J69)/2)<0, 0, (SUM(J68:J68)-J69)/2) -> 0 | L71: =IF(((SUM(L68:L68)-L69)/2)<0, 0, (SUM(L68:L68)-L69)/2) -> 0 | N71: =IF(((SUM(N68:N68)-N69)/2)<0, 0, (SUM(N68:N68)-N69)/2) -> 0
A72: Reduced UCC | B72: =B71+B67 -> 0 | D72: =D71+D67 -> 0 | F72: =F71+F67 -> 0 | H72: =H71+H67 -> 0 | J72: =J71+J67 -> 0 | L72: =L71+L67 -> 0 | N72: =N71+N67 -> 0
A73: CCA Rate Class | B73: ='3. Cost_of_Service_Parameters'!G66 -> 45 | D73: ='3. Cost_of_Service_Parameters'!I66 -> 45 | F73: ='3. Cost_of_Service_Parameters'!K66 -> 50 | H73: ='3. Cost_of_Service_Parameters'!M66 -> 52 | J73: ='3. Cost_of_Service_Parameters'!O66 -> 52 | L73: ='3. Cost_of_Service_Parameters'!Q66 -> 50 | N73: ='3. Cost_of_Service_Parameters'!S66 -> 50
A74: CCA Rate | B74: ='3. Cost_of_Service_Parameters'!G67 -> 0.45 | D74: ='3. Cost_of_Service_Parameters'!I67 -> 0.45 | F74: ='3. Cost_of_Service_Parameters'!K67 -> 0.55 | H74: ='3. Cost_of_Service_Parameters'!M67 -> 1 | J74: ='3. Cost_of_Service_Parameters'!O67 -> 1 | L74: ='3. Cost_of_Service_Parameters'!Q67 -> 0.55 | N74: ='3. Cost_of_Service_Parameters'!S67 -> 0.55
A75: CCA | B75: =B74*B72 -> 0 | D75: =D74*D72 -> 0 | F75: =F74*F72 -> 0 | H75: =H74*H72 -> 0 | J75: =J74*J72 -> 0 | L75: =L74*L72 -> 0 | N75: =N74*N72 -> 0
A76: Closing UCC | B76: =IF((B70-B75)<0, 0, B70-B75) -> 0 | D76: =IF((D70-D75)<0, 0, D70-D75) -> 0 | F76: =IF((F70-F75)<0, 0, F70-F75) -> 0 | H76: =IF((H70-H75)<0, 0, H70-H75) -> 0 | J76: =IF((J70-J75)<0, 0, J70-J75) -> 0 | L76: =IF((L70-L75)<0, 0, L70-L75) -> 0 | N76: =IF((N70-N75)<0, 0, N70-N75) -> 0

Sheet 7_Taxes_PILs
A18: PILs Calculation
C20: ='2. Smart_Meter_Costs'!G18& " " &'2. Smart_Meter_Costs'!G19 -> 2006 Audited Actual | E20: ='2. Smart_Meter_Costs'!I18& " " &'2. Smart_Meter_Costs'!I19 -> 2007 Audited Actual | G20: ='2. Smart_Meter_Costs'!K18& " " &'2. Smart_Meter_Costs'!K19 -> 2008 Audited Actual | I20: ='2. Smart_Meter_Costs'!M18& " " &'2. Smart_Meter_Costs'!M19 -> 2009 Audited Actual | K20: ='2. Smart_Meter_Costs'!O18& " " &'2. Smart_Meter_Costs'!O19 -> 2010 Audited Actual | M20: ='2. Smart_Meter_Costs'!Q18& " " &'2. Smart_Meter_Costs'!Q19 -> 2011 Audited Actual | O20: ='2. Smart_Meter_Costs'!S18& " " &'2. Smart_Meter_Costs'!S19 -> 2012 and later Forecast
A22: INCOME TAX
B23: Net Income | C23: ='5. SM_Rev_Reqt'!G$66 -> 0 | E23: ='5. SM_Rev_Reqt'!I$66 -> 221.6325 | G23: ='5. SM_Rev_Reqt'!K$66 -> 491.9002065 | I23: ='5. SM_Rev_Reqt'!M$66 -> 4515.930633 | K23: ='5. SM_Rev_Reqt'!O$66 -> 14200.11 | M23: ='5. SM_Rev_Reqt'!Q$66 -> 23111.18765 | O23: ='5. SM_Rev_Reqt'!S$66 -> 25406.40181
B24: Amortization | C24: ='5. SM_Rev_Reqt'!G$64 -> 0 | E24: ='5. SM_Rev_Reqt'!I$64 -> 339.6666667 | G24: ='5. SM_Rev_Reqt'!K$64 -> 830.5666667 | I24: ='5. SM_Rev_Reqt'!M$64 -> 7961.266667 | K24: ='5. SM_Rev_Reqt'!O$64 -> 25931.43333 | M24: ='5. SM_Rev_Reqt'!Q$64 -> 43998.2 | O24: ='5. SM_Rev_Reqt'!S$64 -> 51188.86667
B25: CCA - Smart Meters | C25: =-'6. UCC_Calculation'!B31 -> 0 | E25: =-'6. UCC_Calculation'!D31 -> -407.6 | G25: =-'6. UCC_Calculation'!F31 -> -964.072 | I25: =-'6. UCC_Calculation'!H31 -> -9324.38624 | K25: =-'6. UCC_Calculation'!J31 -> -29018.83534 | M25: =-'6. UCC_Calculation'!L31 -> -46964.56851 | O25: =-'6. UCC_Calculation'!N31 -> -51427.72303
B26: CCA - Computers | C26: =-'6. UCC_Calculation'!B46 -> 0 | E26: =-'6. UCC_Calculation'!D46 -> 0 | G26: =-'6. UCC_Calculation'!F46 -> 0 | I26: =-'6. UCC_Calculation'!H46 -> -497.5 | K26: =-'6. UCC_Calculation'!J46 -> -4682.5 | M26: =-'6. UCC_Calculation'!L46 -> -3237.85 | O26: =-'6. UCC_Calculation'!N46 -> -2393.1325
B27: CCA - Applications Software | C27: =-'6. UCC_Calculation'!B75 -> 0 | E27: =-'6. UCC_Calculation'!D75 -> 0 | G27: =-'6. UCC_Calculation'!F75 -> 0 | I27: =-'6. UCC_Calculation'!H75 -> 0 | K27: =-'6. UCC_Calculation'!J75 -> 0 | M27: =-'6. UCC_Calculation'!L75 -> 0 | O27: =-'6. UCC_Calculation'!N75 -> 0
B28: CCA - Other Equipment | C28: =-'6. UCC_Calculation'!B61 -> 0 | E28: =-'6. UCC_Calculation'!D61 -> 0 | G28: =-'6. UCC_Calculation'!F61 -> 0 | I28: =-'6. UCC_Calculation'!H61 -> 0 | K28: =-'6. UCC_Calculation'!J61 -> 0 | M28: =-'6. UCC_Calculation'!L61 -> 0 | O28: =-'6. UCC_Calculation'!N61 -> 0
B29: Change in taxable income | C29: =SUM(C23:C28) -> 0 | E29: 153.6991667 | G29: 358.3948732 | I29: 2655.31106 | K29: 6430.207996 | M29: 16906.96913 | O29: 22774.41295
B31: Tax Rate (from Sheet 3) | C31: ='3. Cost_of_Service_Parameters'!G40 -> 0.3612 | E31: ='3. Cost_of_Service_Parameters'!I40 -> 0.3612 | G31: ='3. Cost_of_Service_Parameters'!K40 -> 0.335 | I31: ='3. Cost_of_Service_Parameters'!M40 -> 0.33 | K31: ='3. Cost_of_Service_Parameters'!O40 -> 0.2979 | M31: ='3. Cost_of_Service_Parameters'!Q40 -> 0.2825 | O31: ='3. Cost_of_Service_Parameters'!S40 -> 0.2433
B33: Income Taxes Payable | C33: =C29*C31 -> 0 | E33: 55.516139 | G33: 120.0622825 | I33: 876.2526497 | K33: 1915.558962 | M33: 4776.21878 | O33: 5541.01467
A35: ONTARIO CAPITAL TAX
B36: Smart Meters | C36: ='4. SM_Assets_and_Rate_Base'!G35 -> 0 | E36: ='4. SM_Assets_and_Rate_Base'!I35 -> 9850.333333 | G36: ='4. SM_Assets_and_Rate_Base'!K35 -> 13556.76667 | I36: ='4. SM_Assets_and_Rate_Base'!M35 -> 212094 | K36: ='4. SM_Assets_and_Rate_Base'!O35 -> 491809.5667 | M36: ='4. SM_Assets_and_Rate_Base'!Q35 -> 652094.7667 | O36: ='4. SM_Assets_and_Rate_Base'!S35 -> 606897.7
B37: Computer Hardware | C37: ='4. SM_Assets_and_Rate_Base'!G54 -> 0 | E37: ='4. SM_Assets_and_Rate_Base'!I54 -> 0 | G37: ='4. SM_Assets_and_Rate_Base'!K54 -> 0 | I37: ='4. SM_Assets_and_Rate_Base'!M54 -> 429.3 | K37: ='4. SM_Assets_and_Rate_Base'!O54 -> 4551.3 | M37: ='4. SM_Assets_and_Rate_Base'!Q54 -> 4045.2 | O37: ='4. SM_Assets_and_Rate_Base'!S54 -> 2895.6
B38: Computer Software (Including Application Software) | C38: ='4. SM_Assets_and_Rate_Base'!G73 -> 0 | E38: ='4. SM_Assets_and_Rate_Base'!I73 -> 0 | G38: ='4. SM_Assets_and_Rate_Base'!K73 -> 0 | I38: ='4. SM_Assets_and_Rate_Base'!M73 -> 466.2 | K38: ='4. SM_Assets_and_Rate_Base'!O73 -> 3678.2 | M38: ='4. SM_Assets_and_Rate_Base'!Q73 -> 5374.9 | O38: ='4. SM_Assets_and_Rate_Base'!S73 -> 3970.7
B39: Tools & Equipment | C39: ='4. SM_Assets_and_Rate_Base'!G92 -> 0 | E39: ='4. SM_Assets_and_Rate_Base'!I92 -> 0 | G39: ='4. SM_Assets_and_Rate_Base'!K92 -> 0 | I39: ='4. SM_Assets_and_Rate_Base'!M92 -> 0 | K39: ='4. SM_Assets_and_Rate_Base'!O92 -> 0 | M39: ='4. SM_Assets_and_Rate_Base'!Q92 -> 0 | O39: ='4. SM_Assets_and_Rate_Base'!S92 -> 0
B40: Other Equipment | C40: ='4. SM_Assets_and_Rate_Base'!G111 -> 0 | E40: ='4. SM_Assets_and_Rate_Base'!I111 -> 0 | G40: ='4. SM_Assets_and_Rate_Base'!K111 -> 0 | I40: ='4. SM_Assets_and_Rate_Base'!M111 -> 0 | K40: ='4. SM_Assets_and_Rate_Base'!O111 -> 0 | M40: ='4. SM_Assets_and_Rate_Base'!Q111 -> 0 | O40: ='4. SM_Assets_and_Rate_Base'!S111 -> 0
B41: Rate Base | C41: =SUM(C36:C40) -> 0 | E41: =SUM(E36:E40) -> 9850.333333 | G41: =SUM(G36:G40) -> 13556.76667 | I41: =SUM(I36:I40) -> 212989.5 | K41: =SUM(K36:K40) -> 500039.0667 | M41: =SUM(M36:M40) -> 661514.8667 | O41: =SUM(O36:O40) -> 613764
B42: Less: Exemption
B43: Deemed Taxable Capital | C43: =C41-C42 -> 0 | E43: 9850.333333 | G43: 13556.76667 | I43: 212989.5 | K43: 500039.0667 | M43: 661514.8667 | O43: 613764
B45: Ontario Capital Tax Rate (from Sheet 3) | C45: ='3. Cost_of_Service_Parameters'!G41 -> 0.003 | E45: 0.00225 | G45: 0.00225 | I45: 0.00225 | K45: =0.15%/2 -> 0.00075 | M45: 0 | O45: 0
B47: Net Amount (Taxable Capital x Rate) | C47: =C43*C45 -> 0 | E47: 22.16325 | G47: 30.502725 | I47: 479.226375 | K47: 375.0293 | M47: 0 | O47: 0
B50: Change in Income Taxes Payable | C50: =C33 -> 0 | E50: 55.516139 | G50: 120.0622825 | I50: 876.2526497 | K50: 1915.558962 | M50: 4776.21878 | O50: 5541.01467
B51: Change in OCT | C51: =C47 -> 0 | E51: 22.16325 | G51: 30.502725 | I51: 479.226375 | K51: 375.0293 | M51: 0 | O51: 0
B52: PILs | C52: =SUM(C50:C51) -> 0 | E52: 77.679389 | G52: 150.5650075 | I52: 1355.479025 | K52: 2290.588262 | M52: 4776.21878 | O52: 5541.01467
A55: Gross Up PILs
B56: Tax Rate | C56: =C31 -> 0.3612 | E56: =E31 -> 0.3612 | G56: 0.335 | I56: 0.33 | K56: 0.2979 | M56: 0.2825 | O56: 0.2433
B57: Change in Income Taxes Payable | C57: =C50/(1-C56) -> 0 | E57: 86.90691766 | G57: 180.5447857 | I57: 1307.839776 | K57: 2728.327819 | M57: 6656.750913 | O57: 7322.604295
B58: Change in OCT | C58: =C51 -> 0 | E58: 22.16325 | G58: 30.502725 | I58: 479.226375 | K58: 375.0293 | M58: 0 | O58: 0
B59: PILs | C59: =SUM(C57:C58) -> 0 | E59: 109.0701677 | G59: 211.0475107 | I59: 1787.066151 | K59: 3103.357119 | M59: 6656.750913 | O59: 7322.604295

Sheet 8. Funding_Adder_Revs
J20: Account 1555 - Sub-account Funding Adder Revenues
B22: Interest Rates | C22: Approved Deferral and Variance Accounts | D22: CWIP | F22: Date | G22: Year | H22: Quarter | J22: Opening Balance (Principal) | K22: Funding Adder Revenues | L22: Interest Rate | M22: Interest | N22: Closing Balance | O22: Annual amounts | P22: Board Approved Smart Meter Funding Adder (from Tariff)
B24: 2006 Q1 | F24: 2006-01-01 | G24: =YEAR(F24) -> 2006 | H24: =IF(MONTH(F24)=0,"",IF(MONTH(F24)<4,"Q1",IF(MONTH(F24)<7,"Q2",IF(MONTH(F24)<10,"Q3","Q4")))) -> Q1 | I24: =CONCATENATE(G24," ",H24) -> 2006 Q1 | J24: 0 | L24: =VLOOKUP(I24,$B$22:$D$51,2) -> 0 | M24: =ROUND(J24*L24/12,2) -> 0 | N24: =J24+K24+M24 -> 0
B25: 2006 Q2 | C25: 0.0414 | D25: 0.0468 | F25: 2006-02-01 | G25: =YEAR(F25) -> 2006 | H25: =IF(MONTH(F25)=0,"",IF(MONTH(F25)<4,"Q1",IF(MONTH(F25)<7,"Q2",IF(MONTH(F25)<10,"Q3","Q4")))) -> Q1 | I25: =CONCATENATE(G25," ",H25) -> 2006 Q1 | J25: =J24+K24 -> 0 | L25: 0 | M25: =ROUND(J25*L25/12,2) -> 0 | N25: =J25+K25+M25 -> 0
B26: 2006 Q3 | C26: 0.0459 | D26: 0.0505 | F26: 2006-03-01 | G26: 2006 | H26: Q1 | I26: 2006 Q1 | J26: =J25+K25 -> 0 | L26: 0 | M26: 0 | N26: 0
B27: 2006 Q4 | C27: 0.0459 | D27: 0.0472 | F27: 2006-04-01 | G27: 2006 | H27: Q2 | I27: 2006 Q2 | J27: 0 | L27: 0.0414 | M27: 0 | N27: 0
B28: 2007 Q1 | C28: 0.0459 | D28: 0.0472 | F28: 2006-05-01 | G28: 2006 | H28: Q2 | I28: 2006 Q2 | J28: 0 | K28: 83.46 | L28: 0.0414 | M28: 0 | N28: 83.46 | P28: 0.26
B29: 2007 Q2 | C29: 0.0459 | D29: 0.0472 | F29: 2006-06-01 | G29: 2006 | H29: Q2 | I29: 2006 Q2 | J29: 83.46 | K29: 525.72 | L29: 0.0414 | M29: 0.29 | N29: 609.47 | P29: 0.26
B30: 2007 Q3 | C30: 0.0459 | D30: 0.0518 | F30: 2006-07-01 | G30: 2006 | H30: Q3 | I30: 2006 Q3 | J30: 609.18 | K30: 557.18 | L30: 0.0459 | M30: 2.33 | N30: 1168.69 | P30: 0.26
B31: 2007 Q4 | C31: 0.0514 | D31: 0.0518 | F31: 2006-08-01 | G31: 2006 | H31: Q3 | I31: 2006 Q3 | J31: 1166.36 | K31: 686.14 | L31: 0.0459 | M31: 4.46 | N31: 1856.96 | P31: 0.26
B32: 2008 Q1 | C32: 0.0514 | D32: 0.0518 | F32: 2006-09-01 | G32: 2006 | H32: Q3 | I32: 2006 Q3 | J32: 1852.5 | K32: 509.34 | L32: 0.0459 | M32: 7.09 | N32: 2368.93 | P32: 0.26
B33: 2008 Q2 | C33: 0.0408 | D33: 0.0518 | F33: 2006-10-01 | G33: 2006 | H33: Q4 | I33: 2006 Q4 | J33: 2361.84 | K33: 600.08 | L33: 0.0459 | M33: 9.03 | N33: 2970.95 | P33: 0.26
B34: 2008 Q3 | C34: 0.0335 | D34: 0.0543 | F34: 2006-11-01 | G34: 2006 | H34: Q4 | I34: 2006 Q4 | J34: 2961.92 | K34: 642.2 | L34: 0.0459 | M34: 11.33 | N34: 3615.45 | P34: 0.26
B35: 2008 Q4 | C35: 0.0335 | D35: 0.0543 | F35: 2006-12-01 | G35: 2006 | H35: Q4 | I35: 2006 Q4 | J35: 3604.12 | K35: 558.48 | L35: 0.0459 | M35: 13.79 | N35: 4176.39 | O35: =SUM(K24:K35)+SUM(M24:M35) -> 4210.92 | P35: 0.26
B36: 2009 Q1 | C36: 0.0245 | D36: 0.0661 | F36: 2007-01-01 | G36: 2007 | H36: Q1 | I36: 2007 Q1 | J36: 4162.6 | K36: 600.34 | L36: 0.0459 | M36: 15.92 | N36: 4778.86 | P36: 0.26
B37: 2009 Q2 | C37: 0.01 | D37: 0.0661 | F37: 2007-02-01 | G37: 2007 | H37: Q1 | I37: 2007 Q1 | J37: 4762.94 | K37: 601.38 | L37: 0.0459 | M37: 18.22 | N37: 5382.54 | P37: 0.26
B38: 2009 Q3 | C38: 0.0055 | D38: 0.0567 | F38: 2007-03-01 | G38: 2007 | H38: Q1 | I38: 2007 Q1 | J38: 5364.32 | K38: 643.5 | L38: 0.0459 | M38: 20.52 | N38: 6028.34 | P38: 0.26
B39: 2009 Q4 | C39: 0.0055 | D39: 0.0466 | F39: 2007-04-01 | G39: 2007 | H39: Q2 | I39: 2007 Q2 | J39: 6007.82 | K39: 558.74 | L39: 0.0459 | M39: 22.98 | N39: 6589.54 | P39: 0.26
B40: 2010 Q1 | C40: 0.0055 | D40: 0.0434 | F40: 2007-05-01 | G40: 2007 | H40: Q2 | I40: 2007 Q2 | J40: 6566.56 | K40: 641.16 | L40: 0.0459 | M40: 25.12 | N40: 7232.84 | P40: 0.26
B41: 2010 Q2 | C41: 0.0055 | D41: 0.0434 | F41: 2007-06-01 | G41: 2007 | H41: Q2 | I41: 2007 Q2 | J41: 7207.72 | K41: 603.98 | L41: 0.0459 | M41: 27.57 | N41: 7839.27 | P41: 0.26
B42: 2010 Q3 | C42: 0.0089 | D42: 0.0466 | F42: 2007-07-01 | G42: 2007 | H42: Q3 | I42: 2007 Q3 | J42: 7811.7 | K42: 599.56 | L42: 0.0459 | M42: 29.88 | N42: 8441.14 | P42: 0.26
B43: 2010 Q4 | C43: 0.012 | D43: 0.0401 | F43: 2007-08-01 | G43: 2007 | H43: Q3 | I43: 2007 Q3 | J43: 8411.26 | K43: 649.22 | L43: 0.0459 | M43: 32.17 | N43: 9092.65 | P43: 0.26
B44: 2011 Q1 | C44: 0.0147 | D44: 0.0429 | F44: 2007-09-01 | G44: 2007 | H44: Q3 | I44: 2007 Q3 | J44: 9060.48 | K44: 514.02 | L44: 0.0459 | M44: 34.66 | N44: 9609.16 | P44: 0.26
B45: 2011 Q2 | C45: 0.0147 | D45: 0.0429 | F45: 2007-10-01 | G45: 2007 | H45: Q4 | I45: 2007 Q4 | J45: 9574.5 | K45: 652.6 | L45: 0.0514 | M45: 41.01 | N45: 10268.11 | P45: 0.26
B46: 2011 Q3 | C46: 0.0147 | D46: 0.0429 | F46: 2007-11-01 | G46: 2007 | H46: Q4 | I46: 2007 Q4 | J46: 10227.1 | K46: 650.52 | L46: 0.0514 | M46: 43.81 | N46: 10921.43 | P46: 0.26
B47: 2011 Q4 | C47: =C46 -> 0.0147 | D47: 0.0429 | F47: 2007-12-01 | G47: 2007 | H47: Q4 | I47: 2007 Q4 | J47: 10877.62 | K47: 518.96 | L47: 0.0514 | M47: 46.59 | N47: 11443.17 | O47: =SUM(K36:K47)+SUM(M36:M47) -> 7592.43 | P47: 0.26
B48: 2012 Q1 | C48: 0.0147 | D48: 0.0429 | F48: 2008-01-01 | G48: 2008 | H48: Q1 | I48: 2008 Q1 | J48: 11396.58 | K48: 653.64 | L48: 0.0514 | M48: 48.82 | N48: 12099.04 | P48: 0.26
B49: 2012 Q2 | C49: 0.0147 | D49: 0.0429 | F49: 2008-02-01 | G49: 2008 | H49: Q1 | I49: 2008 Q1 | J49: 12050.22 | K49: 565.24 | L49: 0.0514 | M49: 51.62 | N49: 12667.08 | P49: 0.26
B50: 2012 Q3 | C50: 0.0147 | D50: 0.0429 | F50: 2008-03-01 | G50: 2008 | H50: Q1 | I50: 2008 Q1 | J50: 12615.46 | K50: 514.02 | L50: 0.0514 | M50: 54.04 | N50: 13183.52 | P50: 0.26
B51: 2012 Q4 | C51: 0 | D51: 0.0429 | F51: 2008-04-01 | G51: 2008 | H51: Q2 | I51: 2008 Q2 | J51: 13129.48 | K51: 648.44 | L51: 0.0408 | M51: 44.64 | N51: 13822.56 | P51: 0.26
F52: 2008-05-01 | G52: 2008 | H52: Q2 | I52: 2008 Q2 | J52: 13777.92 | K52: 604.76 | L52: 0.0408 | M52: 46.84 | N52: 14429.52 | P52: 0.26
F53: 2008-06-01 | G53: 2008 | H53: Q2 | I53: 2008 Q2 | J53: 14382.68 | K53: 612.82 | L53: 0.0408 | M53: 48.9 | N53: 15044.4 | P53: 0.26
F54: 2008-07-01 | G54: 2008 | H54: Q3 | I54: 2008 Q3 | J54: 14995.5 | K54: 665.6 | L54: 0.0335 | M54: 41.86 | N54: 15702.96 | P54: 0.26
F55: 2008-08-01 | G55: 2008 | H55: Q3 | I55: 2008 Q3 | J55: 15661.1 | K55: 554.58 | L55: 0.0335 | M55: 43.72 | N55: 16259.4 | P55: 0.26
F56: 2008-09-01 | G56: 2008 | H56: Q3 | I56: 2008 Q3 | J56: 16215.68 | K56: 571.22 | L56: =VLOOKUP(I56,$B$22:$D$51,2) -> 0.0335 | M56: 45.27 | N56: 16832.17 | P56: 0.26
F57: 2008-10-01 | G57: 2008 | H57: Q4 | I57: 2008 Q4 | J57: 16786.9 | K57: 704.08 | L57: 0.0335 | M57: 46.86 | N57: 17537.84 | P57: 0.26
F58: 2008-11-01 | G58: 2008 | H58: Q4 | I58: 2008 Q4 | J58: 17490.98 | K58: 555.62 | L58: 0.0335 | M58: 48.83 | N58: 18095.43 | P58: 0.26
F59: 2008-12-01 | G59: 2008 | H59: Q4 | I59: 2008 Q4 | J59: 18046.6 | K59: 611.52 | L59: 0.0335 | M59: 50.38 | N59: 18708.5 | O59: =SUM(K48:K59)+SUM(M48:M59) -> 7833.32 | P59: 0.26
F60: 2009-01-01 | G60: 2009 | H60: Q1 | I60: 2009 Q1 | J60: 18658.12 | K60: 608.4 | L60: 0.0245 | M60: 38.09 | N60: 19304.61 | P60: 0.26
F61: 2009-02-01 | G61: 2009 | H61: Q1 | I61: 2009 Q1 | J61: 19266.52 | K61: 528.84 | L61: 0.0245 | M61: 39.34 | N61: 19834.7 | P61: 0.26
F62: 2009-03-01 | G62: 2009 | H62: Q1 | I62: 2009 Q1 | J62: 19795.36 | K62: 555.56 | L62: 0.0245 | M62: 40.42 | N62: 20391.34 | P62: 0.26
F63: 2009-04-01 | G63: 2009 | H63: Q2 | I63: 2009 Q2 | J63: 20350.92 | K63: 695.94 | L63: 0.01 | M63: 16.96 | N63: 21063.82 | P63: 0.26
F64: 2009-05-01 | G64: 2009 | H64: Q2 | I64: 2009 Q2 | J64: 21046.86 | K64: 580.97 | L64: 0.01 | M64: 17.54 | N64: 21645.37 | P64: 1
F65: 2009-06-01 | G65: 2009 | H65: Q2 | I65: 2009 Q2 | J65: 21627.83 | K65: 2197.58 | L65: 0.01 | M65: 18.02 | N65: 23843.43 | P65: 1
F66: 2009-07-01 | G66: 2009 | H66: Q3 | I66: 2009 Q3 | J66: 23825.41 | K66: 2516.9 | L66: 0.0055 | M66: 10.92 | N66: 26353.23 | P66: 1
F67: 2009-08-01 | G67: 2009 | H67: Q3 | I67: 2009 Q3 | J67: 26342.31 | K67: 2050.09 | L67: 0.0055 | M67: 12.07 | N67: 28404.47 | P67: 1
F68: 2009-09-01 | G68: 2009 | H68: Q3 | I68: 2009 Q3 | J68: 28392.4 | K68: 2513.43 | L68: 0.0055 | M68: 13.01 | N68: 30918.84 | P68: 1
F69: 2009-10-01 | G69: 2009 | H69: Q4 | I69: 2009 Q4 | J69: 30905.83 | K69: 2369.65 | L69: 0.0055 | M69: 14.17 | N69: 33289.65 | P69: 1
F70: 2009-11-01 | G70: 2009 | H70: Q4 | I70: 2009 Q4 | J70: 33275.48 | K70: 2369.93 | L70: 0.0055 | M70: 15.25 | N70: 35660.66 | P70: 1
F71: 2009-12-01 | G71: 2009 | H71: Q4 | I71: 2009 Q4 | J71: 35645.41 | K71: 2524.17 | L71: 0.0055 | M71: 16.34 | N71: 38185.92 | O71: =SUM(K60:K71)+SUM(M60:M71) -> 19763.59 | P71: 1
F72: 2010-01-01 | G72: 2010 | H72: Q1 | I72: 2010 Q1 | J72: 38169.58 | K72: 2210.35 | L72: 0.0055 | M72: 17.49 | N72: 40397.42 | P72: 1
F73: 2010-02-01 | G73: 2010 | H73: Q1 | I73: 2010 Q1 | J73: 40379.93 | K73: 2069.66 | L73: 0.0055 | M73: 18.51 | N73: 42468.1 | P73: 1
F74: 2010-03-01 | G74: 2010 | H74: Q1 | I74: 2010 Q1 | J74: 42449.59 | K74: 2652.72 | L74: 0.0055 | M74: 19.46 | N74: 45121.77 | P74: 1
F75: 2010-04-01 | G75: 2010 | H75: Q2 | I75: 2010 Q2 | J75: 45102.31 | K75: 2517.41 | L75: 0.0055 | M75: 20.67 | N75: 47640.39 | P75: 1
F76: 2010-05-01 | G76: 2010 | H76: Q2 | I76: 2010 Q2 | J76: 47619.72 | K76: 2385.46 | L76: 0.0055 | M76: 21.83 | N76: 50027.01 | P76: 1.87
F77: 2010-06-01 | G77: 2010 | H77: Q2 | I77: 2010 Q2 | J77: 50005.18 | K77: 4292.39 | L77: 0.0055 | M77: 22.92 | N77: 54320.49 | P77: 1.87
F78: 2010-07-01 | G78: 2010 | H78: Q3 | I78: 2010 Q3 | J78: 54297.57 | K78: 4428.59 | L78: 0.0089 | M78: 40.27 | N78: 58766.43 | P78: 1.87
F79: 2010-08-01 | G79: 2010 | H79: Q3 | I79: 2010 Q3 | J79: 58726.16 | K79: 4431.52 | L79: 0.0089 | M79: 43.56 | N79: 63201.24 | P79: 1.87
F80: 2010-09-01 | G80: 2010 | H80: Q3 | I80: 2010 Q3 | J80: 63157.68 | K80: 4428.83 | L80: 0.0089 | M80: 46.84 | N80: 67633.35 | P80: 1.87
F81: 2010-10-01 | G81: 2010 | H81: Q4 | I81: 2010 Q4 | J81: 67586.51 | K81: 4140.38 | L81: 0.012 | M81: 67.59 | N81: 71794.48 | P81: 1.87
F82: 2010-11-01 | G82: 2010 | H82: Q4 | I82: 2010 Q4 | J82: 71726.89 | K82: 4700.62 | L82: 0.012 | M82: 71.73 | N82: 76499.24 | P82: 1.87
F83: 2010-12-01 | G83: 2010 | H83: Q4 | I83: 2010 Q4 | J83: 76427.51 | K83: 4413.16 | L83: 0.012 | M83: 76.43 | N83: 80917.1 | O83: =SUM(K72:K83)+SUM(M72:M83) -> 43138.39 | P83: 1.87
F84: 2011-01-01 | G84: 2011 | H84: Q1 | I84: 2011 Q1 | J84: 80840.67 | K84: 4144.55 | L84: 0.0147 | M84: 99.03 | N84: 85084.25 | P84: 1.87
F85: 2011-02-01 | G85: 2011 | H85: Q1 | I85: 2011 Q1 | J85: 84985.22 | K85: 3848.67 | L85: 0.0147 | M85: 104.11 | N85: 88938 | P85: 1.87
F86: 2011-03-01 | G86: 2011 | H86: Q1 | I86: 2011 Q1 | J86: 88833.89 | K86: 4974.31 | L86: 0.0147 | M86: 108.82 | N86: 93917.02 | P86: 1.87
F87: 2011-04-01 | G87: 2011 | H87: Q2 | I87: 2011 Q2 | J87: 93808.2 | K87: 3846.27 | L87: 0.0147 | M87: 114.92 | N87: 97769.39 | P87: 1.87
F88: 2011-05-01 | G88: 2011 | H88: Q2 | I88: 2011 Q2 | J88: 97654.47 | K88: 4393.73 | L88: =VLOOKUP(I88,$B$22:$D$51,2) -> 0.0147 | M88: 119.63 | N88: 102167.83 | P88: 1.87
F89: 2011-06-01 | G89: =YEAR(F89) -> 2011 | H89: =IF(MONTH(F89)=0,"",IF(MONTH(F89)<4,"Q1",IF(MONTH(F89)<7,"Q2",IF(MONTH(F89)<10,"Q3","Q4")))) -> Q2 | I89: =CONCATENATE(G89," ",H89) -> 2011 Q2 | J89: 102048.2 | K89: 4652.24 | L89: 0.0147 | M89: =ROUND(J89*L89/12,2) -> 125.01 | N89: =J89+K89+M89 -> 106825.45 | P89: 1.87
F90: 2011-07-01 | G90: 2011 | H90: Q3 | I90: 2011 Q3 | J90: =J89+K89 -> 106700.44 | K90: 4139.86 | L90: 0.0147 | M90: 130.71 | N90: 110971.01 | P90: 1.87
F91: 2011-08-01 | G91: 2011 | H91: Q3 | I91: 2011 Q3 | J91: 110840.3 | K91: 4670.45 | L91: 0.0147 | M91: 135.78 | N91: 115646.53 | P91: 1.87
F92: 2011-09-01 | G92: 2011 | H92: Q3 | I92: 2011 Q3 | J92: 115510.75 | K92: 4407.48 | L92: 0.0147 | M92: 141.5 | N92: 120059.73 | P92: 1.87
F93: 2011-10-01 | G93: 2011 | H93: Q4 | I93: 2011 Q4 | J93: 119918.23 | K93: 4074.93 | L93: 0.0147 | M93: 146.9 | N93: 124140.06 | P93: 1.87
F94: 2011-11-01 | G94: 2011 | H94: Q4 | I94: 2011 Q4 | J94: 123993.16 | K94: 4537.66 | L94: 0.0147 | M94: 151.89 | N94: 128682.71 | P94: 1.87
F95: 2011-12-01 | G95: 2011 | H95: Q4 | I95: 2011 Q4 | J95: 128530.82 | K95: 4288.82 | L95: 0.0147 | M95: 157.45 | N95: 132977.09 | O95: =SUM(K84:K95)+SUM(M84:M95) -> 53514.72 | P95: 1.87
F96: 2012-01-01 | G96: 2012 | H96: Q1 | I96: 2012 Q1 | J96: 132819.64 | K96: 4326.97 | L96: 0.0147 | M96: 162.7 | N96: 137309.31 | P96: 1.87
F97: 2012-02-01 | G97: 2012 | H97: Q1 | I97: 2012 Q1 | J97: 137146.61 | K97: 4396.74 | L97: 0.0147 | M97: 168 | N97: 141711.35 | P97: 1.87
F98: 2012-03-01 | G98: 2012 | H98: Q1 | I98: 2012 Q1 | J98: 141543.35 | K98: 4453.85 | L98: 0.0147 | M98: 173.39 | N98: 146170.59 | P98: 1.87
F99: 2012-04-01 | G99: 2012 | H99: Q2 | I99: 2012 Q2 | J99: 145997.2 | K99: 4256.99 | L99: 0.0147 | M99: 178.85 | N99: 150433.04 | P99: 1.87
F100: 2012-05-01 | G100: 2012 | H100: Q2 | I100: 2012 Q2 | J100: 150254.19 | K100: 4286.41 | L100: 0.0147 | M100: 184.06 | N100: 154724.66
F101: 2012-06-01 | G101: 2012 | H101: Q2 | I101: 2012 Q2 | J101: 154540.6 | K101: 641.93 | L101: 0.0147 | M101: 189.31 | N101: 155371.84
F102: 2012-07-01 | G102: 2012 | H102: Q3 | I102: 2012 Q3 | J102: 155182.53 | L102: 0.0147 | M102: 190.1 | N102: 155372.63
F103: 2012-08-01 | G103: 2012 | H103: Q3 | I103: 2012 Q3 | J103: 155182.53 | L103: 0.0147 | M103: 190.1 | N103: 155372.63
F104: 2012-09-01 | G104: 2012 | H104: Q3 | I104: 2012 Q3 | J104: 155182.53 | L104: 0.0147 | M104: 190.1 | N104: 155372.63
F105: 2012-10-01 | G105: 2012 | H105: Q4 | I105: 2012 Q4 | J105: 155182.53 | L105: 0.0147 | M105: 190.1 | N105: 155372.63
F106: 2012-11-01 | G106: 2012 | H106: Q4 | I106: 2012 Q4 | J106: 155182.53 | L106: 0 | M106: 0 | N106: 155182.53
F107: 2012-12-01 | G107: 2012 | H107: Q4 | I107: 2012 Q4 | J107: 155182.53 | L107: 0 | M107: 0 | N107: 155182.53 | O107: =SUM(K96:K107)+SUM(M96:M107) -> 24179.6
F109: Total Funding Adder Revenues Collected | K109: =SUM(K24:K107) -> 155182.53 | M109: =SUM(M24:M107) -> 5050.44 | N109: =K109+M109 -> 160232.97 | O109: =SUM(O24:O107) -> 160232.97

Sheet 8A. Opex_Interest_monthly
J21: Account 1556 - Sub-accounts Operating Expenses, Amortization Expenses, Carrying Charges
B23: Prescribed Interest Rates | C23: Approved Deferral and Variance Accounts | D23: CWIP | F23: Date | G23: Year | H23: Quarter | J23: Opening Balance (Principal) | K23: OM&A Expenses | L23: Amortization / Depreciation Expense | M23: Closing Balance (Principal) | N23: (Annual) Interest Rate | O23: Interest (on opening balance) | P23: Cumulative Interest
B25: ='8. Funding_Adder_Revs'!B24 -> 2006 Q1 | C25: ='8. Funding_Adder_Revs'!C24 -> 0 | D25: ='8. Funding_Adder_Revs'!D24 -> 0 | F25: ='8. Funding_Adder_Revs'!F24 -> 2006-01-01 | G25: ='8. Funding_Adder_Revs'!G24 -> 2006 | H25: ='8. Funding_Adder_Revs'!H24 -> Q1 | J25: 0 | M25: =J25+K25+L25 -> 0 | N25: ='8. Funding_Adder_Revs'!L24 -> 0 | O25: =J25*N25/12 -> 0 | P25: =O25 -> 0
B26: ='8. Funding_Adder_Revs'!B25 -> 2006 Q2 | C26: ='8. Funding_Adder_Revs'!C25 -> 0.0414 | D26: ='8. Funding_Adder_Revs'!D25 -> 0.0468 | F26: ='8. Funding_Adder_Revs'!F25 -> 2006-02-01 | G26: ='8. Funding_Adder_Revs'!G25 -> 2006 | H26: ='8. Funding_Adder_Revs'!H25 -> Q1 | J26: =M25 -> 0 | M26: =J26+K26+L26 -> 0 | N26: ='8. Funding_Adder_Revs'!L25 -> 0 | O26: =J26*N26/12 -> 0 | P26: =O26+P25 -> 0
B27: ='8. Funding_Adder_Revs'!B26 -> 2006 Q3 | C27: ='8. Funding_Adder_Revs'!C26 -> 0.0459 | D27: ='8. Funding_Adder_Revs'!D26 -> 0.0505 | F27: ='8. Funding_Adder_Revs'!F26 -> 2006-03-01 | G27: ='8. Funding_Adder_Revs'!G26 -> 2006 | H27: ='8. Funding_Adder_Revs'!H26 -> Q1 | J27: =M26 -> 0 | M27: 0 | N27: ='8. Funding_Adder_Revs'!L26 -> 0 | O27: 0 | P27: =O27+P26 -> 0
B28: ='8. Funding_Adder_Revs'!B27 -> 2006 Q4 | C28: ='8. Funding_Adder_Revs'!C27 -> 0.0459 | D28: ='8. Funding_Adder_Revs'!D27 -> 0.0472 | F28: ='8. Funding_Adder_Revs'!F27 -> 2006-04-01 | G28: ='8. Funding_Adder_Revs'!G27 -> 2006 | H28: ='8. Funding_Adder_Revs'!H27 -> Q2 | J28: 0 | M28: 0 | N28: ='8. Funding_Adder_Revs'!L27 -> 0.0414 | O28: 0 | P28: 0
B29: ='8. Funding_Adder_Revs'!B28 -> 2007 Q1 | C29: ='8. Funding_Adder_Revs'!C28 -> 0.0459 | D29: ='8. Funding_Adder_Revs'!D28 -> 0.0472 | F29: ='8. Funding_Adder_Revs'!F28 -> 2006-05-01 | G29: ='8. Funding_Adder_Revs'!G28 -> 2006 | H29: ='8. Funding_Adder_Revs'!H28 -> Q2 | J29: 0 | M29: 0 | N29: ='8. Funding_Adder_Revs'!L28 -> 0.0414 | O29: 0 | P29: 0
B30: ='8. Funding_Adder_Revs'!B29 -> 2007 Q2 | C30: ='8. Funding_Adder_Revs'!C29 -> 0.0459 | D30: ='8. Funding_Adder_Revs'!D29 -> 0.0472 | F30: ='8. Funding_Adder_Revs'!F29 -> 2006-06-01 | G30: ='8. Funding_Adder_Revs'!G29 -> 2006 | H30: ='8. Funding_Adder_Revs'!H29 -> Q2 | J30: 0 | M30: 0 | N30: ='8. Funding_Adder_Revs'!L29 -> 0.0414 | O30: 0 | P30: 0
B31: ='8. Funding_Adder_Revs'!B30 -> 2007 Q3 | C31: ='8. Funding_Adder_Revs'!C30 -> 0.0459 | D31: ='8. Funding_Adder_Revs'!D30 -> 0.0518 | F31: ='8. Funding_Adder_Revs'!F30 -> 2006-07-01 | G31: ='8. Funding_Adder_Revs'!G30 -> 2006 | H31: ='8. Funding_Adder_Revs'!H30 -> Q3 | J31: 0 | M31: 0 | N31: ='8. Funding_Adder_Revs'!L30 -> 0.0459 | O31: 0 | P31: 0
B32: ='8. Funding_Adder_Revs'!B31 -> 2007 Q4 | C32: ='8. Funding_Adder_Revs'!C31 -> 0.0514 | D32: ='8. Funding_Adder_Revs'!D31 -> 0.0518 | F32: ='8. Funding_Adder_Revs'!F31 -> 2006-08-01 | G32: ='8. Funding_Adder_Revs'!G31 -> 2006 | H32: ='8. Funding_Adder_Revs'!H31 -> Q3 | J32: 0 | M32: 0 | N32: ='8. Funding_Adder_Revs'!L31 -> 0.0459 | O32: 0 | P32: 0
B33: ='8. Funding_Adder_Revs'!B32 -> 2008 Q1 | C33: ='8. Funding_Adder_Revs'!C32 -> 0.0514 | D33: ='8. Funding_Adder_Revs'!D32 -> 0.0518 | F33: ='8. Funding_Adder_Revs'!F32 -> 2006-09-01 | G33: ='8. Funding_Adder_Revs'!G32 -> 2006 | H33: ='8. Funding_Adder_Revs'!H32 -> Q3 | J33: 0 | M33: 0 | N33: ='8. Funding_Adder_Revs'!L32 -> 0.0459 | O33: 0 | P33: 0
B34: ='8. Funding_Adder_Revs'!B33 -> 2008 Q2 | C34: ='8. Funding_Adder_Revs'!C33 -> 0.0408 | D34: ='8. Funding_Adder_Revs'!D33 -> 0.0518 | F34: ='8. Funding_Adder_Revs'!F33 -> 2006-10-01 | G34: ='8. Funding_Adder_Revs'!G33 -> 2006 | H34: ='8. Funding_Adder_Revs'!H33 -> Q4 | J34: 0 | M34: 0 | N34: ='8. Funding_Adder_Revs'!L33 -> 0.0459 | O34: 0 | P34: 0
B35: ='8. Funding_Adder_Revs'!B34 -> 2008 Q3 | C35: ='8. Funding_Adder_Revs'!C34 -> 0.0335 | D35: ='8. Funding_Adder_Revs'!D34 -> 0.0543 | F35: ='8. Funding_Adder_Revs'!F34 -> 2006-11-01 | G35: ='8. Funding_Adder_Revs'!G34 -> 2006 | H35: ='8. Funding_Adder_Revs'!H34 -> Q4 | J35: 0 | M35: 0 | N35: ='8. Funding_Adder_Revs'!L34 -> 0.0459 | O35: 0 | P35: 0
B36: ='8. Funding_Adder_Revs'!B35 -> 2008 Q4 | C36: ='8. Funding_Adder_Revs'!C35 -> 0.0335 | D36: ='8. Funding_Adder_Revs'!D35 -> 0.0543 | F36: ='8. Funding_Adder_Revs'!F35 -> 2006-12-01 | G36: ='8. Funding_Adder_Revs'!G35 -> 2006 | H36: ='8. Funding_Adder_Revs'!H35 -> Q4 | J36: 0 | M36: 0 | N36: ='8. Funding_Adder_Revs'!L35 -> 0.0459 | O36: 0 | P36: 0
B37: ='8. Funding_Adder_Revs'!B36 -> 2009 Q1 | C37: ='8. Funding_Adder_Revs'!C36 -> 0.0245 | D37: ='8. Funding_Adder_Revs'!D36 -> 0.0661 | F37: ='8. Funding_Adder_Revs'!F36 -> 2007-01-01 | G37: ='8. Funding_Adder_Revs'!G36 -> 2007 | H37: ='8. Funding_Adder_Revs'!H36 -> Q1 | J37: 0 | M37: 0 | N37: ='8. Funding_Adder_Revs'!L36 -> 0.0459 | O37: 0 | P37: 0
B38: ='8. Funding_Adder_Revs'!B37 -> 2009 Q2 | C38: ='8. Funding_Adder_Revs'!C37 -> 0.01 | D38: ='8. Funding_Adder_Revs'!D37 -> 0.0661 | F38: ='8. Funding_Adder_Revs'!F37 -> 2007-02-01 | G38: ='8. Funding_Adder_Revs'!G37 -> 2007 | H38: ='8. Funding_Adder_Revs'!H37 -> Q1 | J38: 0 | M38: 0 | N38: ='8. Funding_Adder_Revs'!L37 -> 0.0459 | O38: 0 | P38: 0
B39: ='8. Funding_Adder_Revs'!B38 -> 2009 Q3 | C39: ='8. Funding_Adder_Revs'!C38 -> 0.0055 | D39: ='8. Funding_Adder_Revs'!D38 -> 0.0567 | F39: ='8. Funding_Adder_Revs'!F38 -> 2007-03-01 | G39: ='8. Funding_Adder_Revs'!G38 -> 2007 | H39: ='8. Funding_Adder_Revs'!H38 -> Q1 | J39: 0 | M39: 0 | N39: ='8. Funding_Adder_Revs'!L38 -> 0.0459 | O39: 0 | P39: 0
B40: ='8. Funding_Adder_Revs'!B39 -> 2009 Q4 | C40: ='8. Funding_Adder_Revs'!C39 -> 0.0055 | D40: ='8. Funding_Adder_Revs'!D39 -> 0.0466 | F40: ='8. Funding_Adder_Revs'!F39 -> 2007-04-01 | G40: ='8. Funding_Adder_Revs'!G39 -> 2007 | H40: ='8. Funding_Adder_Revs'!H39 -> Q2 | J40: 0 | M40: 0 | N40: ='8. Funding_Adder_Revs'!L39 -> 0.0459 | O40: 0 | P40: 0
B41: ='8. Funding_Adder_Revs'!B40 -> 2010 Q1 | C41: ='8. Funding_Adder_Revs'!C40 -> 0.0055 | D41: ='8. Funding_Adder_Revs'!D40 -> 0.0434 | F41: ='8. Funding_Adder_Revs'!F40 -> 2007-05-01 | G41: ='8. Funding_Adder_Revs'!G40 -> 2007 | H41: ='8. Funding_Adder_Revs'!H40 -> Q2 | J41: 0 | M41: 0 | N41: ='8. Funding_Adder_Revs'!L40 -> 0.0459 | O41: 0 | P41: 0
B42: ='8. Funding_Adder_Revs'!B41 -> 2010 Q2 | C42: ='8. Funding_Adder_Revs'!C41 -> 0.0055 | D42: ='8. Funding_Adder_Revs'!D41 -> 0.0434 | F42: ='8. Funding_Adder_Revs'!F41 -> 2007-06-01 | G42: ='8. Funding_Adder_Revs'!G41 -> 2007 | H42: ='8. Funding_Adder_Revs'!H41 -> Q2 | J42: 0 | M42: 0 | N42: ='8. Funding_Adder_Revs'!L41 -> 0.0459 | O42: 0 | P42: 0
B43: ='8. Funding_Adder_Revs'!B42 -> 2010 Q3 | C43: ='8. Funding_Adder_Revs'!C42 -> 0.0089 | D43: ='8. Funding_Adder_Revs'!D42 -> 0.0466 | F43: ='8. Funding_Adder_Revs'!F42 -> 2007-07-01 | G43: ='8. Funding_Adder_Revs'!G42 -> 2007 | H43: ='8. Funding_Adder_Revs'!H42 -> Q3 | J43: 0 | M43: 0 | N43: ='8. Funding_Adder_Revs'!L42 -> 0.0459 | O43: 0 | P43: 0
B44: ='8. Funding_Adder_Revs'!B43 -> 2010 Q4 | C44: ='8. Funding_Adder_Revs'!C43 -> 0.012 | D44: ='8. Funding_Adder_Revs'!D43 -> 0.0401 | F44: ='8. Funding_Adder_Revs'!F43 -> 2007-08-01 | G44: ='8. Funding_Adder_Revs'!G43 -> 2007 | H44: ='8. Funding_Adder_Revs'!H43 -> Q3 | J44: 0 | M44: 0 | N44: ='8. Funding_Adder_Revs'!L43 -> 0.0459 | O44: 0 | P44: 0
B45: ='8. Funding_Adder_Revs'!B44 -> 2011 Q1 | C45: ='8. Funding_Adder_Revs'!C44 -> 0.0147 | D45: ='8. Funding_Adder_Revs'!D44 -> 0.0429 | F45: ='8. Funding_Adder_Revs'!F44 -> 2007-09-01 | G45: ='8. Funding_Adder_Revs'!G44 -> 2007 | H45: ='8. Funding_Adder_Revs'!H44 -> Q3 | J45: 0 | M45: 0 | N45: ='8. Funding_Adder_Revs'!L44 -> 0.0459 | O45: 0 | P45: 0
B46: ='8. Funding_Adder_Revs'!B45 -> 2011 Q2 | C46: ='8. Funding_Adder_Revs'!C45 -> 0.0147 | D46: ='8. Funding_Adder_Revs'!D45 -> 0.0429 | F46: ='8. Funding_Adder_Revs'!F45 -> 2007-10-01 | G46: ='8. Funding_Adder_Revs'!G45 -> 2007 | H46: ='8. Funding_Adder_Revs'!H45 -> Q4 | J46: 0 | M46: 0 | N46: ='8. Funding_Adder_Revs'!L45 -> 0.0514 | O46: 0 | P46: 0
B47: ='8. Funding_Adder_Revs'!B46 -> 2011 Q3 | C47: ='8. Funding_Adder_Revs'!C46 -> 0.0147 | D47: ='8. Funding_Adder_Revs'!D46 -> 0.0429 | F47: ='8. Funding_Adder_Revs'!F46 -> 2007-11-01 | G47: ='8. Funding_Adder_Revs'!G46 -> 2007 | H47: ='8. Funding_Adder_Revs'!H46 -> Q4 | J47: 0 | M47: 0 | N47: ='8. Funding_Adder_Revs'!L46 -> 0.0514 | O47: 0 | P47: 0
B48: ='8. Funding_Adder_Revs'!B47 -> 2011 Q4 | C48: ='8. Funding_Adder_Revs'!C47 -> 0.0147 | D48: ='8. Funding_Adder_Revs'!D47 -> 0.0429 | F48: ='8. Funding_Adder_Revs'!F47 -> 2007-12-01 | G48: ='8. Funding_Adder_Revs'!G47 -> 2007 | H48: ='8. Funding_Adder_Revs'!H47 -> Q4 | J48: 0 | M48: 0 | N48: ='8. Funding_Adder_Revs'!L47 -> 0.0514 | O48: 0 | P48: 0
B49: ='8. Funding_Adder_Revs'!B48 -> 2012 Q1 | C49: ='8. Funding_Adder_Revs'!C48 -> 0.0147 | D49: ='8. Funding_Adder_Revs'!D48 -> 0.0429 | F49: ='8. Funding_Adder_Revs'!F48 -> 2008-01-01 | G49: ='8. Funding_Adder_Revs'!G48 -> 2008 | H49: ='8. Funding_Adder_Revs'!H48 -> Q1 | J49: 0 | M49: 0 | N49: ='8. Funding_Adder_Revs'!L48 -> 0.0514 | O49: 0 | P49: 0
B50: ='8. Funding_Adder_Revs'!B49 -> 2012 Q2 | C50: ='8. Funding_Adder_Revs'!C49 -> 0.0147 | D50: ='8. Funding_Adder_Revs'!D49 -> 0.0429 | F50: ='8. Funding_Adder_Revs'!F49 -> 2008-02-01 | G50: ='8. Funding_Adder_Revs'!G49 -> 2008 | H50: ='8. Funding_Adder_Revs'!H49 -> Q1 | J50: 0 | M50: 0 | N50: ='8. Funding_Adder_Revs'!L49 -> 0.0514 | O50: 0 | P50: 0
B51: ='8. Funding_Adder_Revs'!B50 -> 2012 Q3 | C51: ='8. Funding_Adder_Revs'!C50 -> 0.0147 | D51: ='8. Funding_Adder_Revs'!D50 -> 0.0429 | F51: ='8. Funding_Adder_Revs'!F50 -> 2008-03-01 | G51: ='8. Funding_Adder_Revs'!G50 -> 2008 | H51: ='8. Funding_Adder_Revs'!H50 -> Q1 | J51: 0 | M51: 0 | N51: ='8. Funding_Adder_Revs'!L50 -> 0.0514 | O51: 0 | P51: 0
B52: ='8. Funding_Adder_Revs'!B51 -> 2012 Q4 | C52: ='8. Funding_Adder_Revs'!C51 -> 0 | D52: ='8. Funding_Adder_Revs'!D51 -> 0.0429 | F52: ='8. Funding_Adder_Revs'!F51 -> 2008-04-01 | G52: ='8. Funding_Adder_Revs'!G51 -> 2008 | H52: ='8. Funding_Adder_Revs'!H51 -> Q2 | J52: 0 | M52: 0 | N52: ='8. Funding_Adder_Revs'!L51 -> 0.0408 | O52: 0 | P52: 0
F53: ='8. Funding_Adder_Revs'!F52 -> 2008-05-01 | G53: ='8. Funding_Adder_Revs'!G52 -> 2008 | H53: ='8. Funding_Adder_Revs'!H52 -> Q2 | J53: 0 | M53: 0 | N53: ='8. Funding_Adder_Revs'!L52 -> 0.0408 | O53: 0 | P53: 0
F54: ='8. Funding_Adder_Revs'!F53 -> 2008-06-01 | G54: ='8. Funding_Adder_Revs'!G53 -> 2008 | H54: ='8. Funding_Adder_Revs'!H53 -> Q2 | J54: 0 | M54: 0 | N54: ='8. Funding_Adder_Revs'!L53 -> 0.0408 | O54: 0 | P54: 0
F55: ='8. Funding_Adder_Revs'!F54 -> 2008-07-01 | G55: ='8. Funding_Adder_Revs'!G54 -> 2008 | H55: ='8. Funding_Adder_Revs'!H54 -> Q3 | J55: 0 | M55: 0 | N55: ='8. Funding_Adder_Revs'!L54 -> 0.0335 | O55: 0 | P55: 0
F56: ='8. Funding_Adder_Revs'!F55 -> 2008-08-01 | G56: ='8. Funding_Adder_Revs'!G55 -> 2008 | H56: ='8. Funding_Adder_Revs'!H55 -> Q3 | J56: 0 | M56: 0 | N56: ='8. Funding_Adder_Revs'!L55 -> 0.0335 | O56: 0 | P56: 0
F57: ='8. Funding_Adder_Revs'!F56 -> 2008-09-01 | G57: ='8. Funding_Adder_Revs'!G56 -> 2008 | H57: ='8. Funding_Adder_Revs'!H56 -> Q3 | J57: 0 | M57: 0 | N57: ='8. Funding_Adder_Revs'!L56 -> 0.0335 | O57: 0 | P57: 0
F58: ='8. Funding_Adder_Revs'!F57 -> 2008-10-01 | G58: ='8. Funding_Adder_Revs'!G57 -> 2008 | H58: ='8. Funding_Adder_Revs'!H57 -> Q4 | J58: 0 | M58: 0 | N58: ='8. Funding_Adder_Revs'!L57 -> 0.0335 | O58: 0 | P58: 0
F59: ='8. Funding_Adder_Revs'!F58 -> 2008-11-01 | G59: ='8. Funding_Adder_Revs'!G58 -> 2008 | H59: ='8. Funding_Adder_Revs'!H58 -> Q4 | J59: 0 | M59: 0 | N59: ='8. Funding_Adder_Revs'!L58 -> 0.0335 | O59: 0 | P59: 0
F60: ='8. Funding_Adder_Revs'!F59 -> 2008-12-01 | G60: ='8. Funding_Adder_Revs'!G59 -> 2008 | H60: ='8. Funding_Adder_Revs'!H59 -> Q4 | J60: 0 | M60: 0 | N60: ='8. Funding_Adder_Revs'!L59 -> 0.0335 | O60: 0 | P60: 0
F61: ='8. Funding_Adder_Revs'!F60 -> 2009-01-01 | G61: ='8. Funding_Adder_Revs'!G60 -> 2009 | H61: ='8. Funding_Adder_Revs'!H60 -> Q1 | J61: 0 | M61: 0 | N61: ='8. Funding_Adder_Revs'!L60 -> 0.0245 | O61: 0 | P61: 0
F62: ='8. Funding_Adder_Revs'!F61 -> 2009-02-01 | G62: ='8. Funding_Adder_Revs'!G61 -> 2009 | H62: ='8. Funding_Adder_Revs'!H61 -> Q1 | J62: 0 | M62: 0 | N62: ='8. Funding_Adder_Revs'!L61 -> 0.0245 | O62: 0 | P62: 0
F63: ='8. Funding_Adder_Revs'!F62 -> 2009-03-01 | G63: ='8. Funding_Adder_Revs'!G62 -> 2009 | H63: ='8. Funding_Adder_Revs'!H62 -> Q1 | J63: 0 | M63: 0 | N63: ='8. Funding_Adder_Revs'!L62 -> 0.0245 | O63: 0 | P63: 0
F64: ='8. Funding_Adder_Revs'!F63 -> 2009-04-01 | G64: ='8. Funding_Adder_Revs'!G63 -> 2009 | H64: ='8. Funding_Adder_Revs'!H63 -> Q2 | J64: 0 | M64: 0 | N64: ='8. Funding_Adder_Revs'!L63 -> 0.01 | O64: 0 | P64: 0
F65: ='8. Funding_Adder_Revs'!F64 -> 2009-05-01 | G65: ='8. Funding_Adder_Revs'!G64 -> 2009 | H65: ='8. Funding_Adder_Revs'!H64 -> Q2 | J65: 0 | M65: 0 | N65: ='8. Funding_Adder_Revs'!L64 -> 0.01 | O65: 0 | P65: 0
F66: ='8. Funding_Adder_Revs'!F65 -> 2009-06-01 | G66: ='8. Funding_Adder_Revs'!G65 -> 2009 | H66: ='8. Funding_Adder_Revs'!H65 -> Q2 | J66: 0 | M66: 0 | N66: ='8. Funding_Adder_Revs'!L65 -> 0.01 | O66: 0 | P66: 0
F67: ='8. Funding_Adder_Revs'!F66 -> 2009-07-01 | G67: ='8. Funding_Adder_Revs'!G66 -> 2009 | H67: ='8. Funding_Adder_Revs'!H66 -> Q3 | J67: 0 | M67: 0 | N67: ='8. Funding_Adder_Revs'!L66 -> 0.0055 | O67: 0 | P67: 0
F68: ='8. Funding_Adder_Revs'!F67 -> 2009-08-01 | G68: ='8. Funding_Adder_Revs'!G67 -> 2009 | H68: ='8. Funding_Adder_Revs'!H67 -> Q3 | J68: 0 | M68: 0 | N68: ='8. Funding_Adder_Revs'!L67 -> 0.0055 | O68: 0 | P68: 0
F69: ='8. Funding_Adder_Revs'!F68 -> 2009-09-01 | G69: ='8. Funding_Adder_Revs'!G68 -> 2009 | H69: ='8. Funding_Adder_Revs'!H68 -> Q3 | J69: 0 | M69: 0 | N69: ='8. Funding_Adder_Revs'!L68 -> 0.0055 | O69: 0 | P69: 0
F70: ='8. Funding_Adder_Revs'!F69 -> 2009-10-01 | G70: ='8. Funding_Adder_Revs'!G69 -> 2009 | H70: ='8. Funding_Adder_Revs'!H69 -> Q4 | J70: 0 | M70: 0 | N70: ='8. Funding_Adder_Revs'!L69 -> 0.0055 | O70: 0 | P70: 0
F71: ='8. Funding_Adder_Revs'!F70 -> 2009-11-01 | G71: ='8. Funding_Adder_Revs'!G70 -> 2009 | H71: ='8. Funding_Adder_Revs'!H70 -> Q4 | J71: 0 | M71: 0 | N71: ='8. Funding_Adder_Revs'!L70 -> 0.0055 | O71: 0 | P71: 0
F72: ='8. Funding_Adder_Revs'!F71 -> 2009-12-01 | G72: ='8. Funding_Adder_Revs'!G71 -> 2009 | H72: ='8. Funding_Adder_Revs'!H71 -> Q4 | J72: 0 | M72: 0 | N72: ='8. Funding_Adder_Revs'!L71 -> 0.0055 | O72: 0 | P72: 0
F73: ='8. Funding_Adder_Revs'!F72 -> 2010-01-01 | G73: ='8. Funding_Adder_Revs'!G72 -> 2010 | H73: ='8. Funding_Adder_Revs'!H72 -> Q1 | J73: 0 | M73: 0 | N73: ='8. Funding_Adder_Revs'!L72 -> 0.0055 | O73: 0 | P73: 0
F74: ='8. Funding_Adder_Revs'!F73 -> 2010-02-01 | G74: ='8. Funding_Adder_Revs'!G73 -> 2010 | H74: ='8. Funding_Adder_Revs'!H73 -> Q1 | J74: 0 | M74: 0 | N74: ='8. Funding_Adder_Revs'!L73 -> 0.0055 | O74: 0 | P74: 0
F75: ='8. Funding_Adder_Revs'!F74 -> 2010-03-01 | G75: ='8. Funding_Adder_Revs'!G74 -> 2010 | H75: ='8. Funding_Adder_Revs'!H74 -> Q1 | J75: 0 | M75: 0 | N75: ='8. Funding_Adder_Revs'!L74 -> 0.0055 | O75: 0 | P75: 0
F76: ='8. Funding_Adder_Revs'!F75 -> 2010-04-01 | G76: ='8. Funding_Adder_Revs'!G75 -> 2010 | H76: ='8. Funding_Adder_Revs'!H75 -> Q2 | J76: 0 | M76: 0 | N76: ='8. Funding_Adder_Revs'!L75 -> 0.0055 | O76: 0 | P76: 0
F77: ='8. Funding_Adder_Revs'!F76 -> 2010-05-01 | G77: ='8. Funding_Adder_Revs'!G76 -> 2010 | H77: ='8. Funding_Adder_Revs'!H76 -> Q2 | J77: 0 | M77: 0 | N77: ='8. Funding_Adder_Revs'!L76 -> 0.0055 | O77: 0 | P77: 0
F78: ='8. Funding_Adder_Revs'!F77 -> 2010-06-01 | G78: ='8. Funding_Adder_Revs'!G77 -> 2010 | H78: ='8. Funding_Adder_Revs'!H77 -> Q2 | J78: 0 | M78: 0 | N78: ='8. Funding_Adder_Revs'!L77 -> 0.0055 | O78: 0 | P78: 0
F79: ='8. Funding_Adder_Revs'!F78 -> 2010-07-01 | G79: ='8. Funding_Adder_Revs'!G78 -> 2010 | H79: ='8. Funding_Adder_Revs'!H78 -> Q3 | J79: 0 | M79: 0 | N79: ='8. Funding_Adder_Revs'!L78 -> 0.0089 | O79: 0 | P79: 0
F80: ='8. Funding_Adder_Revs'!F79 -> 2010-08-01 | G80: ='8. Funding_Adder_Revs'!G79 -> 2010 | H80: ='8. Funding_Adder_Revs'!H79 -> Q3 | J80: 0 | M80: 0 | N80: ='8. Funding_Adder_Revs'!L79 -> 0.0089 | O80: 0 | P80: 0
F81: ='8. Funding_Adder_Revs'!F80 -> 2010-09-01 | G81: ='8. Funding_Adder_Revs'!G80 -> 2010 | H81: ='8. Funding_Adder_Revs'!H80 -> Q3 | J81: 0 | M81: 0 | N81: ='8. Funding_Adder_Revs'!L80 -> 0.0089 | O81: 0 | P81: 0
F82: ='8. Funding_Adder_Revs'!F81 -> 2010-10-01 | G82: ='8. Funding_Adder_Revs'!G81 -> 2010 | H82: ='8. Funding_Adder_Revs'!H81 -> Q4 | J82: 0 | M82: 0 | N82: ='8. Funding_Adder_Revs'!L81 -> 0.012 | O82: 0 | P82: 0
F83: ='8. Funding_Adder_Revs'!F82 -> 2010-11-01 | G83: ='8. Funding_Adder_Revs'!G82 -> 2010 | H83: ='8. Funding_Adder_Revs'!H82 -> Q4 | J83: 0 | M83: 0 | N83: ='8. Funding_Adder_Revs'!L82 -> 0.012 | O83: 0 | P83: 0
F84: ='8. Funding_Adder_Revs'!F83 -> 2010-12-01 | G84: ='8. Funding_Adder_Revs'!G83 -> 2010 | H84: ='8. Funding_Adder_Revs'!H83 -> Q4 | J84: 0 | M84: 0 | N84: ='8. Funding_Adder_Revs'!L83 -> 0.012 | O84: 0 | P84: 0
F85: ='8. Funding_Adder_Revs'!F84 -> 2011-01-01 | G85: ='8. Funding_Adder_Revs'!G84 -> 2011 | H85: ='8. Funding_Adder_Revs'!H84 -> Q1 | J85: 0 | M85: 0 | N85: ='8. Funding_Adder_Revs'!L84 -> 0.0147 | O85: 0 | P85: 0
F86: ='8. Funding_Adder_Revs'!F85 -> 2011-02-01 | G86: ='8. Funding_Adder_Revs'!G85 -> 2011 | H86: ='8. Funding_Adder_Revs'!H85 -> Q1 | J86: 0 | M86: 0 | N86: ='8. Funding_Adder_Revs'!L85 -> 0.0147 | O86: 0 | P86: 0
F87: ='8. Funding_Adder_Revs'!F86 -> 2011-03-01 | G87: ='8. Funding_Adder_Revs'!G86 -> 2011 | H87: ='8. Funding_Adder_Revs'!H86 -> Q1 | J87: 0 | M87: 0 | N87: ='8. Funding_Adder_Revs'!L86 -> 0.0147 | O87: 0 | P87: 0
F88: ='8. Funding_Adder_Revs'!F87 -> 2011-04-01 | G88: ='8. Funding_Adder_Revs'!G87 -> 2011 | H88: ='8. Funding_Adder_Revs'!H87 -> Q2 | J88: 0 | M88: 0 | N88: ='8. Funding_Adder_Revs'!L87 -> 0.0147 | O88: 0 | P88: 0
F89: ='8. Funding_Adder_Revs'!F88 -> 2011-05-01 | G89: ='8. Funding_Adder_Revs'!G88 -> 2011 | H89: ='8. Funding_Adder_Revs'!H88 -> Q2 | J89: 0 | M89: 0 | N89: ='8. Funding_Adder_Revs'!L88 -> 0.0147 | O89: 0 | P89: 0
F90: ='8. Funding_Adder_Revs'!F89 -> 2011-06-01 | G90: ='8. Funding_Adder_Revs'!G89 -> 2011 | H90: ='8. Funding_Adder_Revs'!H89 -> Q2 | J90: 0 | M90: =J90+K90+L90 -> 0 | N90: ='8. Funding_Adder_Revs'!L89 -> 0.0147 | O90: =J90*N90/12 -> 0 | P90: 0
F91: ='8. Funding_Adder_Revs'!F90 -> 2011-07-01 | G91: ='8. Funding_Adder_Revs'!G90 -> 2011 | H91: ='8. Funding_Adder_Revs'!H90 -> Q3 | J91: =M90 -> 0 | M91: 0 | N91: ='8. Funding_Adder_Revs'!L90 -> 0.0147 | O91: 0 | P91: =O91+P90 -> 0
F92: ='8. Funding_Adder_Revs'!F91 -> 2011-08-01 | G92: ='8. Funding_Adder_Revs'!G91 -> 2011 | H92: ='8. Funding_Adder_Revs'!H91 -> Q3 | J92: 0 | M92: 0 | N92: ='8. Funding_Adder_Revs'!L91 -> 0.0147 | O92: 0 | P92: 0
F93: ='8. Funding_Adder_Revs'!F92 -> 2011-09-01 | G93: ='8. Funding_Adder_Revs'!G92 -> 2011 | H93: ='8. Funding_Adder_Revs'!H92 -> Q3 | J93: 0 | M93: 0 | N93: ='8. Funding_Adder_Revs'!L92 -> 0.0147 | O93: 0 | P93: 0
F94: ='8. Funding_Adder_Revs'!F93 -> 2011-10-01 | G94: ='8. Funding_Adder_Revs'!G93 -> 2011 | H94: ='8. Funding_Adder_Revs'!H93 -> Q4 | J94: 0 | M94: 0 | N94: ='8. Funding_Adder_Revs'!L93 -> 0.0147 | O94: 0 | P94: 0
F95: ='8. Funding_Adder_Revs'!F94 -> 2011-11-01 | G95: ='8. Funding_Adder_Revs'!G94 -> 2011 | H95: ='8. Funding_Adder_Revs'!H94 -> Q4 | J95: 0 | M95: 0 | N95: ='8. Funding_Adder_Revs'!L94 -> 0.0147 | O95: 0 | P95: 0
F96: ='8. Funding_Adder_Revs'!F95 -> 2011-12-01 | G96: ='8. Funding_Adder_Revs'!G95 -> 2011 | H96: ='8. Funding_Adder_Revs'!H95 -> Q4 | J96: 0 | M96: 0 | N96: ='8. Funding_Adder_Revs'!L95 -> 0.0147 | O96: 0 | P96: 0
F97: ='8. Funding_Adder_Revs'!F96 -> 2012-01-01 | G97: ='8. Funding_Adder_Revs'!G96 -> 2012 | H97: ='8. Funding_Adder_Revs'!H96 -> Q1 | J97: 0 | M97: 0 | N97: ='8. Funding_Adder_Revs'!L96 -> 0.0147 | O97: 0 | P97: 0
F98: ='8. Funding_Adder_Revs'!F97 -> 2012-02-01 | G98: ='8. Funding_Adder_Revs'!G97 -> 2012 | H98: ='8. Funding_Adder_Revs'!H97 -> Q1 | J98: 0 | M98: 0 | N98: ='8. Funding_Adder_Revs'!L97 -> 0.0147 | O98: 0 | P98: 0
F99: ='8. Funding_Adder_Revs'!F98 -> 2012-03-01 | G99: ='8. Funding_Adder_Revs'!G98 -> 2012 | H99: ='8. Funding_Adder_Revs'!H98 -> Q1 | J99: 0 | M99: 0 | N99: ='8. Funding_Adder_Revs'!L98 -> 0.0147 | O99: 0 | P99: 0
F100: ='8. Funding_Adder_Revs'!F99 -> 2012-04-01 | G100: ='8. Funding_Adder_Revs'!G99 -> 2012 | H100: ='8. Funding_Adder_Revs'!H99 -> Q2 | J100: 0 | M100: 0 | N100: ='8. Funding_Adder_Revs'!L99 -> 0.0147 | O100: 0 | P100: 0
F101: ='8. Funding_Adder_Revs'!F100 -> 2012-05-01 | G101: ='8. Funding_Adder_Revs'!G100 -> 2012 | H101: ='8. Funding_Adder_Revs'!H100 -> Q2 | J101: 0 | M101: 0 | N101: ='8. Funding_Adder_Revs'!L100 -> 0.0147 | O101: 0 | P101: 0
F102: ='8. Funding_Adder_Revs'!F101 -> 2012-06-01 | G102: ='8. Funding_Adder_Revs'!G101 -> 2012 | H102: ='8. Funding_Adder_Revs'!H101 -> Q2 | J102: 0 | M102: 0 | N102: ='8. Funding_Adder_Revs'!L101 -> 0.0147 | O102: 0 | P102: 0
F103: ='8. Funding_Adder_Revs'!F102 -> 2012-07-01 | G103: ='8. Funding_Adder_Revs'!G102 -> 2012 | H103: ='8. Funding_Adder_Revs'!H102 -> Q3 | J103: 0 | M103: 0 | N103: ='8. Funding_Adder_Revs'!L102 -> 0.0147 | O103: 0 | P103: 0
F104: ='8. Funding_Adder_Revs'!F103 -> 2012-08-01 | G104: ='8. Funding_Adder_Revs'!G103 -> 2012 | H104: ='8. Funding_Adder_Revs'!H103 -> Q3 | J104: 0 | M104: 0 | N104: ='8. Funding_Adder_Revs'!L103 -> 0.0147 | O104: 0 | P104: 0
F105: ='8. Funding_Adder_Revs'!F104 -> 2012-09-01 | G105: ='8. Funding_Adder_Revs'!G104 -> 2012 | H105: ='8. Funding_Adder_Revs'!H104 -> Q3 | J105: 0 | M105: 0 | N105: ='8. Funding_Adder_Revs'!L104 -> 0.0147 | O105: 0 | P105: 0
F106: ='8. Funding_Adder_Revs'!F105 -> 2012-10-01 | G106: ='8. Funding_Adder_Revs'!G105 -> 2012 | H106: ='8. Funding_Adder_Revs'!H105 -> Q4 | J106: 0 | M106: 0 | N106: ='8. Funding_Adder_Revs'!L105 -> 0.0147 | O106: 0 | P106: 0
F107: ='8. Funding_Adder_Revs'!F106 -> 2012-11-01 | G107: ='8. Funding_Adder_Revs'!G106 -> 2012 | H107: ='8. Funding_Adder_Revs'!H106 -> Q4 | J107: 0 | M107: 0 | N107: ='8. Funding_Adder_Revs'!L106 -> 0 | O107: 0 | P107: 0
F108: ='8. Funding_Adder_Revs'!F107 -> 2012-12-01 | G108: ='8. Funding_Adder_Revs'!G107 -> 2012 | H108: ='8. Funding_Adder_Revs'!H107 -> Q4 | J108: 0 | M108: 0 | N108: ='8. Funding_Adder_Revs'!L107 -> 0 | O108: 0 | P108: 0
K110: =SUM(K25:K108) -> 0 | L110: =SUM(L25:L108) -> 0 | M110: =K110+L110 -> 0

Sheet 8B. Opex_Interest_annual
B21: Year | D21: OM&A | F21: Amortization Expense | H21: Cumulative OM&A and Amortization Expense | J21: Average Cumulative OM&A and Amortization Expense | L21: Average Annual Prescribed Interest Rate for Deferral and Variance Accounts (from Sheets 8A and 8B) | N21: Simple Interest on OM&A and Amortization Expenses
D22: (from Sheet 5) | F22: (from Sheet 5)
B23: 2006 | D23: ='5. SM_Rev_Reqt'!G50 -> 0 | F23: ='5. SM_Rev_Reqt'!G58 -> 0 | H23: =D23+F23 -> 0 | J23: =H23/2 -> 0 | L23: =AVERAGE('8A. Opex_Interest_monthly'!$C$26:$C$28,'8A. Opex_Interest_monthly'!$C$26) -> 0.04365 | N23: =J23*L23 -> 0
B24: 2007 | D24: ='5. SM_Rev_Reqt'!I50 -> 0 | F24: ='5. SM_Rev_Reqt'!I58 -> 339.6666667 | H24: =H23+D24+F24 -> 339.6666667 | J24: =(H24+H23)/2 -> 169.8333333 | L24: =AVERAGE('8A. Opex_Interest_monthly'!$C$29:$C$32) -> 0.047275 | N24: 8.028870833
B25: 2008 | D25: ='5. SM_Rev_Reqt'!K50 -> 0 | F25: ='5. SM_Rev_Reqt'!K58 -> 830.5666667 | H25: 1170.233333 | J25: 754.95 | L25: =AVERAGE('8A. Opex_Interest_monthly'!$C$33:$C$36) -> 0.0398 | N25: 30.04701
B26: 2009 | D26: ='5. SM_Rev_Reqt'!M50 -> 17394 | F26: ='5. SM_Rev_Reqt'!M58 -> 7961.266667 | H26: 26525.5 | J26: 13847.86667 | L26: =AVERAGE('8A. Opex_Interest_monthly'!$C$37:$C$40) -> 0.011375 | N26: 157.5194833
B27: 2010 | D27: ='5. SM_Rev_Reqt'!O50 -> 25964 | F27: ='5. SM_Rev_Reqt'!O58 -> 25931.43333 | H27: 78420.93333 | J27: 52473.21667 | L27: =AVERAGE('8A. Opex_Interest_monthly'!$C$41:$C$44) -> 0.007975 | N27: 418.4739029
B28: 2011 | D28: ='5. SM_Rev_Reqt'!Q50 -> 38676 | F28: ='5. SM_Rev_Reqt'!Q58 -> 43998.2 | H28: 161095.1333 | J28: 119758.0333 | L28: =AVERAGE('8A. Opex_Interest_monthly'!$C$45:$C$48) -> 0.0147 | N28: 1760.44309
B29: 2012 | D29: ='5. SM_Rev_Reqt'!S50 -> 47954 | F29: ='5. SM_Rev_Reqt'!S58 -> 51188.86667 | H29: 260238 | J29: 210666.5667 | L29: =L28 -> 0.0147 | N29: 3096.79853
B31: Cumulative Interest to 2011 | N31: =SUM(N23:N28) -> 2374.512357
B32: Cumulative Interest to 2012 | N32: =SUM(N23:N29) -> 5471.310887

Sheet 9. SMFA_SMDR_SMIRR
B20: Check if applicable
E22: Smart Meter Funding Adder (SMFA)
C24: X | E24: Smart Meter Disposition Rider (SMDR) | G24: The SMDR is calculated based on costs to December 31, 2011
C26: X | E26: Smart Meter Incremental Revenue Requirement Rate Rider (SMIRR) | G26: The SMIRR is calculated based on the incremental revenue requirement associated with the recovery of capital related costs to December 31, 2012 and associated OM&A.
G28: 2006 | I28: 2007 | K28: 2008 | M28: 2009 | O28: 2010 | Q28: 2011 | S28: 2012 and later | U28: Total
C30: Deferred and forecasted Smart Meter Incremental Revenue Requirement (from Sheet 5) | G30: ='5. SM_Rev_Reqt'!G70 -> 0 | I30: ='5. SM_Rev_Reqt'!I70 -> 819.355626 | K30: ='5. SM_Rev_Reqt'!K70 -> 1910.912909 | M30: ='5. SM_Rev_Reqt'!M70 -> 35633.42964 | O30: ='5. SM_Rev_Reqt'!O70 -> 79851.14541 | Q30: ='5. SM_Rev_Reqt'!Q70 -> 129779.0488 | S30: ='5. SM_Rev_Reqt'!S70 -> 150930.5431 | U30: =SUM(G30:S30) -> 398924.4355
C32: Interest on Deferred and forecasted OM&A and Amortization Expense (Sheet 8A/8B) | G32: =IF($C35="X",G35,IF($C37="X",G37,0)) -> 0 | I32: =IF($C35="X",I35,IF($C37="X",I37,0)) -> 8.028870833 | K32: =IF($C35="X",K35,IF($C37="X",K37,0)) -> 30.04701 | M32: =IF($C35="X",M35,IF($C37="X",M37,0)) -> 157.5194833 | O32: =IF($C35="X",O35,IF($C37="X",O37,0)) -> 418.4739029 | Q32: =IF($C35="X",Q35,IF($C37="X",Q37,0)) -> 1760.44309 | S32: =IF($C35="X",S35,IF($C37="X",S37,0)) -> 2580.665442 | U32: =SUM(G32:S32) -> 4955.177799
C33: (Check one of the boxes below)
E35: Sheet 8A (Interest calculated on monthly balances) | G35: =IF(C35="X",SUM('8A. Opex_Interest_monthly'!O25:O36),"") ->  | I35: =IF(C35="X",SUM('8A. Opex_Interest_monthly'!O37:O48),"") ->  | K35: =IF(C35="X",SUM('8A. Opex_Interest_monthly'!O49:O60),"") ->  | M35: =IF(C35="X",SUM('8A. Opex_Interest_monthly'!O61:O72),"") ->  | O35: =IF(C35="X",SUM('8A. Opex_Interest_monthly'!O73:O84),"") ->  | Q35: =IF($C35="X",SUM('8A. Opex_Interest_monthly'!O85:O96),"") ->  | S35: =IF($C35="X",SUM('8A. Opex_Interest_monthly'!O97:O108),"") ->  | U35: =SUM(G35:S35) -> 0
C37: X | E37: Sheet 8B (Interest calculated on average annual balances) | G37: =IF(C37="X",'8B. Opex_Interest_annual'!N23,"") -> 0 | I37: =IF(C37="X",'8B. Opex_Interest_annual'!N24,"") -> 8.028870833 | K37: =IF(C37="X",'8B. Opex_Interest_annual'!N25,"") -> 30.04701 | M37: =IF(C37="X",'8B. Opex_Interest_annual'!N26,"") -> 157.5194833 | O37: =IF(C37="X",'8B. Opex_Interest_annual'!N27,"") -> 418.4739029 | Q37: =IF($C37="X",'8B. Opex_Interest_annual'!N28,"") -> 1760.44309 | S37: =IF($C37="X",'8B. Opex_Interest_annual'!N29*10/12,0) -> 2580.665442 | U37: =SUM(G37:Q37) -> 2374.512357
C40: SMFA Revenues (from Sheet 8) | G40: =SUM('8. Funding_Adder_Revs'!K24:K35) -> 4162.6 | I40: =SUM('8. Funding_Adder_Revs'!K36:K47) -> 7233.98 | K40: =SUM('8. Funding_Adder_Revs'!K48:K59) -> 7261.54 | M40: =SUM('8. Funding_Adder_Revs'!K60:K71) -> 19511.46 | O40: =SUM('8. Funding_Adder_Revs'!K72:K83) -> 42671.09 | Q40: =SUM('8. Funding_Adder_Revs'!K84:K95) -> 51978.97 | S40: =SUM('8. Funding_Adder_Revs'!K96:K107) -> 22362.89 | U40: =SUM(G40:S40) -> 155182.53
C42: SMFA Interest (from Sheet 8) | G42: =SUM('8. Funding_Adder_Revs'!M24:M35) -> 48.32 | I42: =SUM('8. Funding_Adder_Revs'!M36:M47) -> 358.45 | K42: =SUM('8. Funding_Adder_Revs'!M48:M59) -> 571.78 | M42: =SUM('8. Funding_Adder_Revs'!M60:M71) -> 252.13 | O42: =SUM('8. Funding_Adder_Revs'!M72:M83) -> 467.3 | Q42: =SUM('8. Funding_Adder_Revs'!M84:M95) -> 1535.75 | S42: =SUM('8. Funding_Adder_Revs'!M96:M107) -> 1816.71 | U42: =SUM(G42:S42) -> 5050.44
C44: Net Deferred Revenue Requirement | G44: =(G30+G32)-(G40+G42) -> -4210.92 | I44: =(I30+I32)-(I40+I42) -> -6765.045503 | K44: =(K30+K32)-(K40+K42) -> -5892.360081 | M44: =(M30+M32)-(M40+M42) -> 16027.35912 | O44: =(O30+O32)-(O40+O42) -> 37131.22931 | Q44: =(Q30+Q32)-(Q40+Q42) -> 78024.77185 | S44: =(S30+S32)-(S40+S42) -> 129331.6086 | U44: =(U30+U32)-(U40+U42) -> 243646.6433
C46: Number of Metered Customers (average for 2012 test year) | S46: 2361
C48: Calculation of Smart Meter Funding Adder (per metered customer per month)
D50: Net Deferred Revenues from 2006 to April 30, 2012 | G50: =U44 -> 243646.6433
D52: SMFA | F52: May 1, 2012 to April 30, 201X | G52: =IF(S46=0,"",ROUND(S44/(S46*12),2)) -> 4.56
D54: Check: Forecasted SMFA Revenues for 2012 test year | G54: =IF(S46=0,"",G52*S46*12) -> 129193.92
C56: Calculation of Smart Meter Disposition Rider (per metered customer per month)
D58: Years for collection or refunding | G58: 1.5
D60: Deferred Incremental Revenue Requirement from 2006 to December 31, 2011 | G60: =SUM(G30:Q30)+SUM(G32:S32) -> 252949.0702
E61: plus Interest on OM&A and Amortization
D62: SMFA Revenues collected from 2006 to 2012 test year (inclusive) | G62: =U40+SUM(G42:S42) -> 160232.97
E63: Plus Simple Interest on SMFA Revenues
D64: Net Deferred Revenue Requirement | G64: =G60-G62 -> 92716.10015
D66: SMDR | F66: November 1, 2012 to April 30, 2014 | G66: =IF(S46=0,"",ROUND(G64/(S46*12*G58),2)) -> 2.18 | I66: =IF(ISERROR(G68/G64), "Error", IF(G68/G64>=95%, "Match", "Error")) -> Match
D68: Check: Forecasted SMDR Revenues | G68: =IF(ISERROR(G66*S46*12*G58), "", G66*S46*12*G58) -> 92645.64
C70: Calculation of Smart Meter Incremental Revenue Requirement Rate Rider (per metered customer per month)
D72: Incremental Revenue Requirement for 2012 | G72: =S30 -> 150930.5431
D74: SMIRR | G74: =IF(ISERROR(ROUND(G72/(S46*12),2)), "", ROUND(G72/(S46*12),2)) -> 5.33 | I74: =IF(ISERROR(G76/G72), "Error", IF(G76/G72>=95%, "Match", "Error")) -> Match
D76: Check: Forecasted SMIRR Revenues | G76: =IF(ISERROR(G74*S46*12), "", G74*S46*12) -> 151009.56
